Workbook

Sheet Timeverdier
A1: Mitt forbruk 2021
A3: Dato | B3: Time 1 | C3: Time 2 | D3: Time 3 | E3: Time 4 | F3: Time 5 | G3: Time 6 | H3: Time 7 | I3: Time 8 | J3: Time 9 | K3: Time 10 | L3: Time 11 | M3: Time 12 | N3: Time 13 | O3: Time 14 | P3: Time 15 | Q3: Time 16 | R3: Time 17 | S3: Time 18 | T3: Time 19 | U3: Time 20 | V3: Time 21 | W3: Time 22 | X3: Time 23 | Y3: Time 24 | Z3: SUM | AA3: MIN. | AB3: MAKS | AC3: GJ.SN
A4: 2021-01-01 | B4: 3.151 | C4: 3.229 | D4: 2.948 | E4: 3.017 | F4: 2.995 | G4: 2.982 | H4: 2.611 | I4: 2.646 | J4: 2.604 | K4: 3.609 | L4: 3.265 | M4: 2.883 | N4: 3.033 | O4: 2.629 | P4: 2.33 | Q4: 3.572 | R4: 3.032 | S4: 3.4 | T4: 2.635 | U4: 2.537 | V4: 2.564 | W4: 2.665 | X4: 2.558 | Y4: 2.793 | Z4: =SUM(B4:Y4) -> 69.688 | AA4: =MIN(B4:Y4) -> 2.33 | AB4: =MAX(B4:Y4) -> 3.609 | AC4: =AVERAGE(B4:Y4) -> 2.903666667
A5: 2021-01-02 | B5: 2.748 | C5: 2.628 | D5: 3.04 | E5: 3.32 | F5: 2.884 | G5: 2.796 | H5: 2.633 | I5: 2.755 | J5: 2.601 | K5: 2.941 | L5: 2.917 | M5: 2.723 | N5: 2.657 | O5: 2.639 | P5: 2.744 | Q5: 3.629 | R5: 3.136 | S5: 3.004 | T5: 3.429 | U5: 4.587 | V5: 2.649 | W5: 2.714 | X5: 2.731 | Y5: 2.768 | Z5: 70.673 | AA5: 2.601 | AB5: 4.587 | AC5: 2.944708333
A6: 2021-01-03 | B6: 2.833 | C6: 2.685 | D6: 3.218 | E6: 2.691 | F6: 2.642 | G6: 2.872 | H6: 2.872 | I6: 3.229 | J6: 2.906 | K6: 3.329 | L6: 2.139 | M6: 2.269 | N6: 2.488 | O6: 2.845 | P6: 2.335 | Q6: 2.635 | R6: 3.715 | S6: 2.798 | T6: 3.082 | U6: 3.239 | V6: 3.161 | W6: 3.095 | X6: 3.348 | Y6: 3.129 | Z6: 69.555 | AA6: 2.139 | AB6: 3.715 | AC6: 2.898125
A7: 2021-01-04 | B7: 3.084 | C7: 4.378 | D7: 3.165 | E7: 3.385 | F7: 3.122 | G7: 3.063 | H7: 2.864 | I7: 3.562 | J7: 3.039 | K7: 2.873 | L7: 3.175 | M7: 3.184 | N7: 3.108 | O7: 2.845 | P7: 2.879 | Q7: 3.176 | R7: 4.954 | S7: 3.407 | T7: 3.281 | U7: 3.46 | V7: 3.142 | W7: 3.201 | X7: 3.232 | Y7: 3.243 | Z7: 78.822 | AA7: 2.845 | AB7: 4.954 | AC7: 3.28425
A8: 2021-01-05 | B8: 3.164 | C8: 3.342 | D8: 3.135 | E8: 3.348 | F8: 3.137 | G8: 3.2 | H8: 3.334 | I8: 3.186 | J8: 3.083 | K8: 3.278 | L8: 3.062 | M8: 3.012 | N8: 2.77 | O8: 2.374 | P8: 2.012 | Q8: 2.908 | R8: 4.063 | S8: 3.365 | T8: 3.093 | U8: 3.021 | V8: 3.072 | W8: 3.117 | X8: 3.228 | Y8: 3.245 | Z8: 74.549 | AA8: 2.012 | AB8: 4.063 | AC8: 3.106208333
A9: 2021-01-06 | B9: 3.075 | C9: 5.277 | D9: 3.904 | E9: 1.772 | F9: 3.185 | G9: 3.185 | H9: 2.925 | I9: 3.255 | J9: 3.186 | K9: 3.252 | L9: 3.195 | M9: 3.126 | N9: 3.17 | O9: 3 | P9: 3.184 | Q9: 3.74 | R9: 4.534 | S9: 3.674 | T9: 3.54 | U9: 3.46 | V9: 3.297 | W9: 4.137 | X9: 4.018 | Y9: 3.218 | Z9: 82.309 | AA9: 1.772 | AB9: 5.277 | AC9: 3.429541667
A10: 2021-01-07 | B10: 3.241 | C10: 3.19 | D10: 3.344 | E10: 3.183 | F10: 3.134 | G10: 3.235 | H10: 3.341 | I10: 3.848 | J10: 2.965 | K10: 3.005 | L10: 3.09 | M10: 2.979 | N10: 3.062 | O10: 3.219 | P10: 3.088 | Q10: 3.282 | R10: 4.09 | S10: 3.169 | T10: 3.445 | U10: 3.367 | V10: 3.398 | W10: 3.281 | X10: 4.029 | Y10: 3.829 | Z10: 79.814 | AA10: 2.965 | AB10: 4.09 | AC10: 3.325583333
A11: 2021-01-08 | B11: 3.46 | C11: 3.347 | D11: 3.251 | E11: 3.203 | F11: 3.337 | G11: 3.445 | H11: 3.266 | I11: 3.693 | J11: 3.237 | K11: 3.293 | L11: 3.393 | M11: 3.185 | N11: 3.332 | O11: 3.3 | P11: 3.074 | Q11: 3.376 | R11: 3.582 | S11: 3.159 | T11: 3.402 | U11: 3.466 | V11: 3.354 | W11: 3.373 | X11: 3.149 | Y11: 3.502 | Z11: 80.179 | AA11: 3.074 | AB11: 3.693 | AC11: 3.340791667
A12: 2021-01-09 | B12: 3.263 | C12: 3.004 | D12: 3.292 | E12: 3.12 | F12: 3.304 | G12: 3.292 | H12: 3.11 | I12: 3.406 | J12: 3.15 | K12: 3.498 | L12: 2.974 | M12: 3.07 | N12: 3.293 | O12: 3.245 | P12: 4.53 | Q12: 2.779 | R12: 2.789 | S12: 4.179 | T12: 2.835 | U12: 2.826 | V12: 2.81 | W12: 2.505 | X12: 2.442 | Y12: 2.685 | Z12: 75.401 | AA12: 2.442 | AB12: 4.53 | AC12: 3.141708333
A13: 2021-01-10 | B13: 2.554 | C13: 2.648 | D13: 2.674 | E13: 2.943 | F13: 2.876 | G13: 2.785 | H13: 2.821 | I13: 2.983 | J13: 3.404 | K13: 3.37 | L13: 2.89 | M13: 3.631 | N13: 3.12 | O13: 3.167 | P13: 2.931 | Q13: 2.381 | R13: 2.639 | S13: 3.145 | T13: 2.895 | U13: 2.893 | V13: 2.998 | W13: 2.947 | X13: 2.782 | Y13: 2.76 | Z13: 70.237 | AA13: 2.381 | AB13: 3.631 | AC13: 2.926541667
A14: 2021-01-11 | B14: 2.661 | C14: 2.782 | D14: 2.76 | E14: 2.749 | F14: 2.772 | G14: 2.802 | H14: 2.738 | I14: 2.824 | J14: 2.889 | K14: 2.846 | L14: 2.641 | M14: 2.64 | N14: 2.656 | O14: 2.659 | P14: 2.684 | Q14: 3.713 | R14: 3.577 | S14: 3.609 | T14: 2.864 | U14: 3.012 | V14: 3.324 | W14: 3.246 | X14: 3.652 | Y14: 3.049 | Z14: 71.149 | AA14: 2.64 | AB14: 3.713 | AC14: 2.964541667
A15: 2021-01-12 | B15: 3.035 | C15: 3.085 | D15: 3.432 | E15: 4.067 | F15: 3.225 | G15: 3.189 | H15: 3.17 | I15: 3.994 | J15: 3.255 | K15: 3.108 | L15: 3.027 | M15: 2.82 | N15: 2.753 | O15: 3.626 | P15: 3.219 | Q15: 4.834 | R15: 3.23 | S15: 2.897 | T15: 3.2 | U15: 3.641 | V15: 2.597 | W15: 2.526 | X15: 2.553 | Y15: 2.414 | Z15: 76.897 | AA15: 2.414 | AB15: 4.834 | AC15: 3.204041667
A16: 2021-01-13 | B16: 2.438 | C16: 3.756 | D16: 1.548 | E16: 1.677 | F16: 2.68 | G16: 2.78 | H16: 2.972 | I16: 3.685 | J16: 3.1 | K16: 3.315 | L16: 3.184 | M16: 2.949 | N16: 3.23 | O16: 3.859 | P16: 3.315 | Q16: 4.626 | R16: 3.599 | S16: 3.243 | T16: 3.42 | U16: 3.501 | V16: 3.269 | W16: 3.396 | X16: 3.285 | Y16: 3.264 | Z16: 76.091 | AA16: 1.548 | AB16: 4.626 | AC16: 3.170458333
A17: 2021-01-14 | B17: 3.415 | C17: 3.498 | D17: 3.564 | E17: 3.504 | F17: 3.424 | G17: 3.431 | H17: 3.459 | I17: 3.723 | J17: 3.142 | K17: 3.125 | L17: 3.062 | M17: 2.845 | N17: 2.676 | O17: 3.226 | P17: 3.009 | Q17: 5.105 | R17: 4.587 | S17: 3.617 | T17: 4.796 | U17: 3.861 | V17: 3.323 | W17: 3.269 | X17: 3.3 | Y17: 3.266 | Z17: 84.227 | AA17: 2.676 | AB17: 5.105 | AC17: 3.509458333
A18: 2021-01-15 | B18: 3.268 | C18: 3.306 | D18: 3.399 | E18: 3.405 | F18: 3.367 | G18: 3.481 | H18: 3.647 | I18: 4.072 | J18: 3.607 | K18: 3.466 | L18: 3.216 | M18: 3.115 | N18: 3.078 | O18: 3.649 | P18: 3.741 | Q18: 3.871 | R18: 4.106 | S18: 3.559 | T18: 3.136 | U18: 3.331 | V18: 3.649 | W18: 2.981 | X18: 3.299 | Y18: 3.5 | Z18: 83.249 | AA18: 2.981 | AB18: 4.106 | AC18: 3.468708333
A19: 2021-01-16 | B19: 3.442 | C19: 3.244 | D19: 3.675 | E19: 3.589 | F19: 3.698 | G19: 3.388 | H19: 3.692 | I19: 4.214 | J19: 3.888 | K19: 4.53 | L19: 3.861 | M19: 3.689 | N19: 3.307 | O19: 2.961 | P19: 2.875 | Q19: 3.295 | R19: 3.135 | S19: 2.917 | T19: 2.911 | U19: 4.196 | V19: 3.2 | W19: 2.804 | X19: 2.923 | Y19: 2.818 | Z19: 82.252 | AA19: 2.804 | AB19: 4.53 | AC19: 3.427166667
A20: 2021-01-17 | B20: 2.856 | C20: 2.667 | D20: 2.792 | E20: 2.724 | F20: 2.726 | G20: 2.676 | H20: 2.731 | I20: 2.755 | J20: 3.261 | K20: 3.231 | L20: 3.223 | M20: 2.534 | N20: 2.563 | O20: 2.715 | P20: 2.564 | Q20: 2.588 | R20: 2.728 | S20: 2.722 | T20: 3.572 | U20: 3.638 | V20: 2.562 | W20: 2.398 | X20: 2.39 | Y20: 2.467 | Z20: 67.083 | AA20: 2.39 | AB20: 3.638 | AC20: 2.795125
A21: 2021-01-18 | B21: 3.141 | C21: 2.525 | D21: 2.574 | E21: 2.509 | F21: 2.526 | G21: 2.607 | H21: 2.625 | I21: 3.478 | J21: 2.611 | K21: 2.591 | L21: 2.684 | M21: 2.455 | N21: 2.444 | O21: 3.019 | P21: 3.052 | Q21: 2.525 | R21: 4.197 | S21: 2.526 | T21: 2.487 | U21: 2.482 | V21: 2.347 | W21: 2.51 | X21: 2.495 | Y21: 2.46 | Z21: 64.87 | AA21: 2.347 | AB21: 4.197 | AC21: 2.702916667
A22: 2021-01-19 | B22: 2.923 | C22: 2.535 | D22: 2.463 | E22: 2.407 | F22: 2.401 | G22: 2.558 | H22: 2.515 | I22: 2.729 | J22: 2.602 | K22: 2.538 | L22: 2.731 | M22: 2.696 | N22: 2.64 | O22: 2.486 | P22: 3.321 | Q22: 3.374 | R22: 3.468 | S22: 2.658 | T22: 2.747 | U22: 3.073 | V22: 2.779 | W22: 2.776 | X22: 2.624 | Y22: 2.624 | Z22: 65.668 | AA22: 2.401 | AB22: 3.468 | AC22: 2.736166667
A23: 2021-01-20 | B23: 2.618 | C23: 3.531 | D23: 4.015 | E23: 4.026 | F23: 0.972 | G23: 1.645 | H23: 2.543 | I23: 3.172 | J23: 4.088 | K23: 2.511 | L23: 2.501 | M23: 2.423 | N23: 2.678 | O23: 3.597 | P23: 3.548 | Q23: 3.259 | R23: 4.059 | S23: 2.988 | T23: 2.718 | U23: 3.258 | V23: 2.766 | W23: 2.382 | X23: 2.501 | Y23: 2.316 | Z23: 70.115 | AA23: 0.972 | AB23: 4.088 | AC23: 2.921458333
A24: 2021-01-21 | B24: 2.244 | C24: 2.26 | D24: 2.521 | E24: 1.835 | F24: 1.832 | G24: 1.8 | H24: 1.888 | I24: 2.702 | J24: 2.479 | K24: 2.147 | L24: 2.917 | M24: 2.76 | N24: 3.404 | O24: 3.819 | P24: 3.721 | Q24: 4.366 | R24: 2.979 | S24: 2.285 | T24: 2.46 | U24: 2.594 | V24: 2.401 | W24: 2.263 | X24: 2.523 | Y24: 2.016 | Z24: 62.216 | AA24: 1.8 | AB24: 4.366 | AC24: 2.592333333
A25: 2021-01-22 | B25: 2.037 | C25: 3.271 | D25: 1.986 | E25: 2.405 | F25: 2.112 | G25: 2.31 | H25: 2.129 | I25: 2.41 | J25: 2.283 | K25: 2.621 | L25: 2.139 | M25: 1.997 | N25: 2.091 | O25: 2.492 | P25: 2.449 | Q25: 3.487 | R25: 2.533 | S25: 2.339 | T25: 2.379 | U25: 2.277 | V25: 2.352 | W25: 2.286 | X25: 2.158 | Y25: 2.111 | Z25: 56.654 | AA25: 1.986 | AB25: 3.487 | AC25: 2.360583333
A26: 2021-01-23 | B26: 2.118 | C26: 2.101 | D26: 2.22 | E26: 2.044 | F26: 2.145 | G26: 2.053 | H26: 2.152 | I26: 2.399 | J26: 2.72 | K26: 2.917 | L26: 2.995 | M26: 3.052 | N26: 2.048 | O26: 2.285 | P26: 2.103 | Q26: 2.359 | R26: 2.467 | S26: 2.641 | T26: 3.327 | U26: 4.359 | V26: 2.626 | W26: 2.65 | X26: 2.212 | Y26: 2.279 | Z26: 60.272 | AA26: 2.044 | AB26: 4.359 | AC26: 2.511333333
A27: 2021-01-24 | B27: 2.176 | C27: 2.209 | D27: 2.37 | E27: 2.338 | F27: 2.482 | G27: 2.529 | H27: 2.547 | I27: 2.602 | J27: 2.765 | K27: 3.03 | L27: 2.655 | M27: 3.17 | N27: 4.194 | O27: 2.693 | P27: 3.283 | Q27: 3.106 | R27: 3.313 | S27: 2.676 | T27: 2.7 | U27: 3.193 | V27: 2.923 | W27: 2.766 | X27: 2.923 | Y27: 2.925 | Z27: 67.568 | AA27: 2.176 | AB27: 4.194 | AC27: 2.815333333
A28: 2021-01-25 | B28: 2.625 | C28: 2.878 | D28: 2.898 | E28: 3.09 | F28: 2.982 | G28: 3.077 | H28: 2.885 | I28: 2.898 | J28: 2.976 | K28: 2.876 | L28: 3.141 | M28: 3.806 | N28: 3.658 | O28: 4.108 | P28: 3.499 | Q28: 3.949 | R28: 3.073 | S28: 3.013 | T28: 3.404 | U28: 2.778 | V28: 2.343 | W28: 2.621 | X28: 3.714 | Y28: 3.074 | Z28: 75.366 | AA28: 2.343 | AB28: 4.108 | AC28: 3.14025
A29: 2021-01-26 | B29: 3.038 | C29: 3.05 | D29: 3.148 | E29: 3.053 | F29: 2.99 | G29: 3.224 | H29: 3.12 | I29: 3.301 | J29: 3.071 | K29: 2.959 | L29: 2.996 | M29: 2.954 | N29: 2.661 | O29: 2.666 | P29: 2.656 | Q29: 3.021 | R29: 3.551 | S29: 2.981 | T29: 3.044 | U29: 3.165 | V29: 3.12 | W29: 3.005 | X29: 3.041 | Y29: 3.194 | Z29: 73.009 | AA29: 2.656 | AB29: 3.551 | AC29: 3.042041667
A30: 2021-01-27 | B30: 3.05 | C30: 3.696 | D30: 4.184 | E30: 4.068 | F30: 1.189 | G30: 3.151 | H30: 3.206 | I30: 3.009 | J30: 3.193 | K30: 3.017 | L30: 2.994 | M30: 2.983 | N30: 4.034 | O30: 2.942 | P30: 3.047 | Q30: 3.103 | R30: 3.307 | S30: 3.057 | T30: 3.269 | U30: 3.114 | V30: 3.119 | W30: 3.24 | X30: 3.066 | Y30: 3.355 | Z30: 76.393 | AA30: 1.189 | AB30: 4.184 | AC30: 3.183041667
A31: 2021-01-28 | B31: 3.193 | C31: 3.395 | D31: 3.222 | E31: 3.743 | F31: 3.246 | G31: 3.485 | H31: 3.318 | I31: 3.402 | J31: 3.358 | K31: 3.356 | L31: 2.973 | M31: 3.08 | N31: 3.047 | O31: 2.824 | P31: 2.662 | Q31: 2.501 | R31: 3.225 | S31: 2.685 | T31: 2.741 | U31: 2.757 | V31: 3.195 | W31: 3.035 | X31: 2.728 | Y31: 2.981 | Z31: 74.152 | AA31: 2.501 | AB31: 3.743 | AC31: 3.089666667
A32: 2021-01-29 | B32: 2.734 | C32: 3.038 | D32: 3.072 | E32: 2.921 | F32: 3.076 | G32: 3.12 | H32: 3.058 | I32: 3.367 | J32: 3.159 | K32: 3.893 | L32: 3.609 | M32: 2.709 | N32: 2.758 | O32: 2.482 | P32: 3.177 | Q32: 5.759 | R32: 3.184 | S32: 2.49 | T32: 2.012 | U32: 2.597 | V32: 2.831 | W32: 3.116 | X32: 2.822 | Y32: 3.134 | Z32: 74.118 | AA32: 2.012 | AB32: 5.759 | AC32: 3.08825
A33: 2021-01-30 | B33: 2.921 | C33: 3.101 | D33: 2.967 | E33: 3.518 | F33: 3.044 | G33: 3.141 | H33: 3.08 | I33: 2.898 | J33: 3.457 | K33: 4.168 | L33: 3.175 | M33: 2.992 | N33: 2.781 | O33: 3.736 | P33: 4.497 | Q33: 4.291 | R33: 3.979 | S33: 3.38 | T33: 4.646 | U33: 2.86 | V33: 3.099 | W33: 3.045 | X33: 3.13 | Y33: 2.947 | Z33: 80.853 | AA33: 2.781 | AB33: 4.646 | AC33: 3.368875
A34: 2021-01-31 | B34: 2.983 | C34: 2.964 | D34: 2.962 | E34: 2.982 | F34: 3.018 | G34: 3.026 | H34: 3.005 | I34: 2.987 | J34: 3.116 | K34: 3.924 | L34: 3.267 | M34: 2.786 | N34: 2.76 | O34: 2.879 | P34: 2.643 | Q34: 2.55 | R34: 2.757 | S34: 2.495 | T34: 2.355 | U34: 2.673 | V34: 2.727 | W34: 2.618 | X34: 2.717 | Y34: 2.652 | Z34: 68.846 | AA34: 2.355 | AB34: 3.924 | AC34: 2.868583333
A35: 2021-02-01 | B35: 2.758 | C35: 2.878 | D35: 2.824 | E35: 4.445 | F35: 3.505 | G35: 3.171 | H35: 3.161 | I35: 3.247 | J35: 3.052 | K35: 2.939 | L35: 2.932 | M35: 3.949 | N35: 3.041 | O35: 2.847 | P35: 2.602 | Q35: 3.312 | R35: 4.786 | S35: 3.265 | T35: 3.251 | U35: 3.154 | V35: 4.327 | W35: 3.245 | X35: 2.933 | Y35: 3.021 | Z35: 78.645 | AA35: 2.602 | AB35: 4.786 | AC35: 3.276875
A36: 2021-02-02 | B36: 3.056 | C36: 3.189 | D36: 3.688 | E36: 3.425 | F36: 3.095 | G36: 3.172 | H36: 3.026 | I36: 3.313 | J36: 3.324 | K36: 3.166 | L36: 3.495 | M36: 3.148 | N36: 3.116 | O36: 2.778 | P36: 2.309 | Q36: 4.186 | R36: 3.346 | S36: 3.321 | T36: 3.683 | U36: 4.169 | V36: 3.645 | W36: 3.31 | X36: 3.371 | Y36: 3.464 | Z36: 79.795 | AA36: 2.309 | AB36: 4.186 | AC36: 3.324791667
A37: 2021-02-03 | B37: 3.248 | C37: 3.912 | D37: 4.451 | E37: 4.499 | F37: 2.883 | G37: 3.299 | H37: 3.461 | I37: 4.43 | J37: 3.706 | K37: 3.566 | L37: 3.256 | M37: 3.165 | N37: 2.997 | O37: 2.897 | P37: 2.838 | Q37: 4.017 | R37: 2.824 | S37: 4.312 | T37: 4.531 | U37: 3.271 | V37: 3.512 | W37: 4.01 | X37: 3.062 | Y37: 3.365 | Z37: 85.512 | AA37: 2.824 | AB37: 4.531 | AC37: 3.563
A38: 2021-02-04 | B38: 3.385 | C38: 4.931 | D38: 4.294 | E38: 4.442 | F38: 3.235 | G38: 3.25 | H38: 3.297 | I38: 4.439 | J38: 3.243 | K38: 3.308 | L38: 3.266 | M38: 1.766 | N38: 2.747 | O38: 5.223 | P38: 4.953 | Q38: 3.415 | R38: 3.461 | S38: 3.582 | T38: 3.731 | U38: 3.763 | V38: 3.401 | W38: 3.695 | X38: 3.482 | Y38: 3.417 | Z38: 87.726 | AA38: 1.766 | AB38: 5.223 | AC38: 3.65525
A39: 2021-02-05 | B39: 3.361 | C39: 3.349 | D39: 3.135 | E39: 3.362 | F39: 3.37 | G39: 3.324 | H39: 3.538 | I39: 4.306 | J39: 3.181 | K39: 3.162 | L39: 3.207 | M39: 3.088 | N39: 3.096 | O39: 3.072 | P39: 2.708 | Q39: 2.504 | R39: 2.545 | S39: 2.779 | T39: 3.265 | U39: 3.357 | V39: 3.607 | W39: 3.541 | X39: 3.463 | Y39: 3.415 | Z39: 77.735 | AA39: 2.504 | AB39: 4.306 | AC39: 3.238958333
A40: 2021-02-06 | B40: 3.45 | C40: 3.376 | D40: 3.362 | E40: 3.431 | F40: 3.161 | G40: 3.404 | H40: 3.118 | I40: 3.291 | J40: 3.521 | K40: 3.587 | L40: 3.912 | M40: 3.226 | N40: 3.124 | O40: 2.865 | P40: 2.593 | Q40: 2.557 | R40: 2.545 | S40: 2.806 | T40: 3.185 | U40: 4.228 | V40: 3.709 | W40: 3.692 | X40: 3.43 | Y40: 3.177 | Z40: 78.75 | AA40: 2.545 | AB40: 4.228 | AC40: 3.28125
A41: 2021-02-07 | B41: 3.076 | C41: 3.214 | D41: 3.144 | E41: 3.282 | F41: 3.173 | G41: 3.316 | H41: 3.099 | I41: 3.255 | J41: 3.829 | K41: 3.539 | L41: 3.322 | M41: 3.056 | N41: 3.239 | O41: 3.02 | P41: 2.868 | Q41: 3.397 | R41: 3.945 | S41: 3.57 | T41: 3.528 | U41: 3.892 | V41: 3.44 | W41: 3.172 | X41: 4.31 | Y41: 4.026 | Z41: 81.712 | AA41: 2.868 | AB41: 4.31 | AC41: 3.404666667
A42: 2021-02-08 | B42: 3.289 | C42: 3.317 | D42: 3.345 | E42: 3.317 | F42: 3.32 | G42: 3.273 | H42: 2.867 | I42: 3.23 | J42: 3.123 | K42: 3.215 | L42: 3.435 | M42: 3.366 | N42: 3.038 | O42: 3.015 | P42: 2.961 | Q42: 3.378 | R42: 2.484 | S42: 3.352 | T42: 3.276 | U42: 3.474 | V42: 4.672 | W42: 4.647 | X42: 5.064 | Y42: 3.466 | Z42: 81.924 | AA42: 2.484 | AB42: 5.064 | AC42: 3.4135
A43: 2021-02-09 | B43: 3.437 | C43: 3.433 | D43: 3.294 | E43: 3.307 | F43: 3.11 | G43: 3.454 | H43: 3.351 | I43: 3.621 | J43: 2.977 | K43: 3.033 | L43: 2.739 | M43: 2.971 | N43: 3.004 | O43: 2.991 | P43: 3.05 | Q43: 3.574 | R43: 3.707 | S43: 1.169 | T43: 3.005 | U43: 3.388 | V43: 3.353 | W43: 2.918 | X43: 3.073 | Y43: 3.08 | Z43: 75.039 | AA43: 1.169 | AB43: 3.707 | AC43: 3.126625
A44: 2021-02-10 | B44: 3.059 | C44: 3.858 | D44: 2.952 | E44: 5.528 | F44: 4.34 | G44: 4.361 | H44: 5.979 | I44: 7.164 | J44: 3.762 | K44: 3.291 | L44: 3.201 | M44: 4.221 | N44: 3.463 | O44: 3.119 | P44: 2.627 | Q44: 2.879 | R44: 4.093 | S44: 3.087 | T44: 3.333 | U44: 3.393 | V44: 3.26 | W44: 3.224 | X44: 3.334 | Y44: 3.122 | Z44: 90.65 | AA44: 2.627 | AB44: 7.164 | AC44: 3.777083333
A45: 2021-02-11 | B45: 3.186 | C45: 3.145 | D45: 3.1 | E45: 3.151 | F45: 3.162 | G45: 3.247 | H45: 3.506 | I45: 3.437 | J45: 3.347 | K45: 3.24 | L45: 3.106 | M45: 2.975 | N45: 2.207 | O45: 1.773 | P45: 2.214 | Q45: 2.706 | R45: 3.976 | S45: 3.264 | T45: 3.28 | U45: 3.429 | V45: 3.324 | W45: 3.367 | X45: 3.194 | Y45: 3.114 | Z45: 74.45 | AA45: 1.773 | AB45: 3.976 | AC45: 3.102083333
A46: 2021-02-12 | B46: 3.089 | C46: 4.63 | D46: 4.806 | E46: 3.332 | F46: 4.927 | G46: 3.27 | H46: 5.436 | I46: 3.191 | J46: 3.097 | K46: 3.086 | L46: 3.241 | M46: 3.068 | N46: 3.068 | O46: 3.212 | P46: 2.771 | Q46: 2.17 | R46: 1.569 | S46: 1.93 | T46: 3.075 | U46: 3.803 | V46: 4.112 | W46: 4.44 | X46: 4.216 | Y46: 3.942 | Z46: 83.481 | AA46: 1.569 | AB46: 5.436 | AC46: 3.478375
A47: 2021-02-13 | B47: 3.858 | C47: 3.77 | D47: 5.575 | E47: 6.856 | F47: 4.911 | G47: 4.487 | H47: 6.733 | I47: 6.839 | J47: 3.321 | K47: 3.127 | L47: 2.739 | M47: 2.844 | N47: 3.577 | O47: 4.067 | P47: 4.628 | Q47: 4.802 | R47: 5.285 | S47: 4.453 | T47: 3.668 | U47: 4.078 | V47: 4.321 | W47: 4.299 | X47: 3.752 | Y47: 5.588 | Z47: 107.578 | AA47: 2.739 | AB47: 6.856 | AC47: 4.482416667
A48: 2021-02-14 | B48: 4.118 | C48: 3.679 | D48: 3.159 | E48: 4.325 | F48: 2.682 | G48: 2.929 | H48: 2.771 | I48: 3.085 | J48: 3.192 | K48: 6.533 | L48: 4.753 | M48: 3.258 | N48: 3.331 | O48: 3.499 | P48: 3.117 | Q48: 5.403 | R48: 4.876 | S48: 3.517 | T48: 2.363 | U48: 2.539 | V48: 2.414 | W48: 2.607 | X48: 2.381 | Y48: 1.942 | Z48: 82.473 | AA48: 1.942 | AB48: 6.533 | AC48: 3.436375
A49: 2021-02-15 | B49: 2.015 | C49: 3.289 | D49: 2.941 | E49: 2.618 | F49: 2.421 | G49: 2.41 | H49: 2.604 | I49: 3.401 | J49: 3.353 | K49: 3.319 | L49: 3.265 | M49: 3.329 | N49: 3.388 | O49: 2.821 | P49: 2.402 | Q49: 3.4 | R49: 2.864 | S49: 2.722 | T49: 2.283 | U49: 2.226 | V49: 2.38 | W49: 2.201 | X49: 2.284 | Y49: 2.311 | Z49: 66.247 | AA49: 2.015 | AB49: 3.401 | AC49: 2.760291667
A50: 2021-02-16 | B50: 2.305 | C50: 2.53 | D50: 2.508 | E50: 2.743 | F50: 2.6 | G50: 2.542 | H50: 2.61 | I50: 3.413 | J50: 2.495 | K50: 2.526 | L50: 2.515 | M50: 2.487 | N50: 2.378 | O50: 2.451 | P50: 2.417 | Q50: 2.604 | R50: 3.298 | S50: 2.331 | T50: 2.306 | U50: 2.419 | V50: 2.198 | W50: 2.212 | X50: 2.335 | Y50: 2.282 | Z50: 60.505 | AA50: 2.198 | AB50: 3.413 | AC50: 2.521041667
A51: 2021-02-17 | B51: 2.555 | C51: 3.571 | D51: 1.693 | E51: 1.534 | F51: 2.526 | G51: 2.602 | H51: 2.377 | I51: 3.101 | J51: 2.405 | K51: 2.503 | L51: 2.536 | M51: 2.792 | N51: 2.415 | O51: 1.955 | P51: 2.004 | Q51: 2.833 | R51: 2.239 | S51: 1.69 | T51: 1.9 | U51: 2.465 | V51: 2.564 | W51: 2.484 | X51: 2.45 | Y51: 2.428 | Z51: 57.622 | AA51: 1.534 | AB51: 3.571 | AC51: 2.400916667
A52: 2021-02-18 | B52: 2.502 | C52: 2.407 | D52: 2.516 | E52: 2.384 | F52: 3.014 | G52: 2.231 | H52: 2.214 | I52: 2.389 | J52: 2.28 | K52: 2.003 | L52: 1.953 | M52: 1.984 | N52: 1.862 | O52: 1.778 | P52: 1.643 | Q52: 1.726 | R52: 1.768 | S52: 0.927 | T52: 2.634 | U52: 2.645 | V52: 2.477 | W52: 2.085 | X52: 2.016 | Y52: 1.849 | Z52: 51.287 | AA52: 0.927 | AB52: 3.014 | AC52: 2.136958333
A53: 2021-02-19 | B53: 1.692 | C53: 2.096 | D53: 1.929 | E53: 2.029 | F53: 2.024 | G53: 2.096 | H53: 2.147 | I53: 2.812 | J53: 2.247 | K53: 1.964 | L53: 1.872 | M53: 2.977 | N53: 2.878 | O53: 2.772 | P53: 2.243 | Q53: 2.67 | R53: 3.304 | S53: 2.181 | T53: 2.108 | U53: 2.368 | V53: 1.698 | W53: 2.009 | X53: 2.027 | Y53: 2.191 | Z53: 54.334 | AA53: 1.692 | AB53: 3.304 | AC53: 2.263916667
A54: 2021-02-20 | B54: 2.022 | C54: 2.071 | D54: 3.018 | E54: 2.345 | F54: 2.266 | G54: 1.716 | H54: 1.844 | I54: 2.075 | J54: 2.037 | K54: 1.672 | L54: 2.109 | M54: 6.339 | N54: 2.422 | O54: 2.334 | P54: 1.921 | Q54: 2.455 | R54: 3.181 | S54: 1.968 | T54: 2.448 | U54: 2.946 | V54: 1.755 | W54: 1.687 | X54: 1.362 | Y54: 1.191 | Z54: 55.184 | AA54: 1.191 | AB54: 6.339 | AC54: 2.299333333
A55: 2021-02-21 | B55: 1.886 | C55: 3.413 | D55: 1.917 | E55: 1.944 | F55: 1.989 | G55: 1.975 | H55: 1.9 | I55: 1.768 | J55: 1.829 | K55: 2.066 | L55: 1.372 | M55: 2.627 | N55: 0.682 | O55: 1.4 | P55: 2.23 | Q55: 3.167 | R55: 2.213 | S55: 1.993 | T55: 2.144 | U55: 2.224 | V55: 2.145 | W55: 1.867 | X55: 2.017 | Y55: 1.66 | Z55: 48.428 | AA55: 0.682 | AB55: 3.413 | AC55: 2.017833333
A56: 2021-02-22 | B56: 1.524 | C56: 1.491 | D56: 2.905 | E56: 2.026 | F56: 1.545 | G56: 1.598 | H56: 0.846 | I56: 1.26 | J56: 2.328 | K56: 2.229 | L56: 2.067 | M56: 1.473 | N56: 0.909 | O56: 1.029 | P56: 1.923 | Q56: 2.862 | R56: 1.127 | S56: 1.22 | T56: 2.331 | U56: 2.485 | V56: 2.203 | W56: 1.835 | X56: 1.898 | Y56: 1.722 | Z56: 42.836 | AA56: 0.846 | AB56: 2.905 | AC56: 1.784833333
A57: 2021-02-23 | B57: 2.042 | C57: 1.71 | D57: 1.854 | E57: 1.812 | F57: 1.638 | G57: 1.839 | H57: 1.471 | I57: 0.796 | J57: 1.106 | K57: 2.339 | L57: 2.017 | M57: 2.193 | N57: 2.013 | O57: 2.158 | P57: 2.035 | Q57: 3.176 | R57: 3.077 | S57: 2.415 | T57: 2.102 | U57: 3.695 | V57: 2.211 | W57: 1.774 | X57: 1.786 | Y57: 1.691 | Z57: 48.95 | AA57: 0.796 | AB57: 3.695 | AC57: 2.039583333
A58: 2021-02-24 | B58: 1.886 | C58: 3.526 | D58: 4.015 | E58: 4.632 | F58: 0.883 | G58: 1.286 | H58: 2.324 | I58: 2.334 | J58: 2.054 | K58: 2.85 | L58: 1.77 | M58: 1.487 | N58: 2.069 | O58: 1.943 | P58: 2.18 | Q58: 3.142 | R58: 3.181 | S58: 2.151 | T58: 2.446 | U58: 2.246 | V58: 2.308 | W58: 2.344 | X58: 2.333 | Y58: 2.273 | Z58: 57.663 | AA58: 0.883 | AB58: 4.632 | AC58: 2.402625
A59: 2021-02-25 | B59: 1.758 | C59: 1.65 | D59: 1.673 | E59: 1.662 | F59: 1.658 | G59: 1.736 | H59: 1.793 | I59: 1.567 | J59: 0.907 | K59: 1.36 | L59: 2.994 | M59: 3.295 | N59: 3.559 | O59: 3.166 | P59: 2.32 | Q59: 1.792 | R59: 3.199 | S59: 3.062 | T59: 2.96 | U59: 2.3 | V59: 3.29 | W59: 2.911 | X59: 2.124 | Y59: 2.176 | Z59: 54.912 | AA59: 0.907 | AB59: 3.559 | AC59: 2.288
A60: 2021-02-26 | B60: 3.356 | C60: 3.526 | D60: 2.144 | E60: 2.329 | F60: 1.733 | G60: 1.634 | H60: 1.064 | I60: 0.827 | J60: 1.315 | K60: 2.13 | L60: 2.176 | M60: 1.799 | N60: 1.563 | O60: 1.868 | P60: 2.003 | Q60: 2.753 | R60: 1.53 | S60: 1.137 | T60: 0.88 | U60: 1.401 | V60: 2.006 | W60: 2.414 | X60: 2.274 | Y60: 2.562 | Z60: 46.424 | AA60: 0.827 | AB60: 3.526 | AC60: 1.934333333
A61: 2021-02-27 | B61: 2.509 | C61: 2.126 | D61: 2.148 | E61: 2.082 | F61: 1.694 | G61: 1.654 | H61: 1.68 | I61: 1.787 | J61: 2.143 | K61: 3.193 | L61: 2.753 | M61: 5.147 | N61: 3.339 | O61: 1.849 | P61: 2.255 | Q61: 2.484 | R61: 3.059 | S61: 2.705 | T61: 2.713 | U61: 3.552 | V61: 1.873 | W61: 2.234 | X61: 1.837 | Y61: 1.995 | Z61: 58.811 | AA61: 1.654 | AB61: 5.147 | AC61: 2.450458333
A62: 2021-02-28 | B62: 2.095 | C62: 2.06 | D62: 1.964 | E62: 1.688 | F62: 1.121 | G62: 0.735 | H62: 1.931 | I62: 2.199 | J62: 2.647 | K62: 2.501 | L62: 2.364 | M62: 1.992 | N62: 0.988 | O62: 1.728 | P62: 1.133 | Q62: 2.224 | R62: 2.548 | S62: 2.055 | T62: 1.976 | U62: 2.222 | V62: 2.356 | W62: 2.095 | X62: 2.234 | Y62: 2.856 | Z62: 47.712 | AA62: 0.735 | AB62: 2.856 | AC62: 1.988
A63: 2021-03-01 | B63: 2.266 | C63: 2.118 | D63: 2.003 | E63: 1.71 | F63: 1.781 | G63: 2.339 | H63: 1.905 | I63: 2.013 | J63: 2.306 | K63: 1.722 | L63: 1.13 | M63: 1.272 | N63: 0.985 | O63: 1.958 | P63: 1.705 | Q63: 2.707 | R63: 3.591 | S63: 1.772 | T63: 4.194 | U63: 3.053 | V63: 3.722 | W63: 3.216 | X63: 2.133 | Y63: 1.887 | Z63: 53.488 | AA63: 0.985 | AB63: 4.194 | AC63: 2.228666667
A64: 2021-03-02 | B64: 1.771 | C64: 1.689 | D64: 1.528 | E64: 0.75 | F64: 1.3 | G64: 3.503 | H64: 2.567 | I64: 2.142 | J64: 2.808 | K64: 1.852 | L64: 1.594 | M64: 1.801 | N64: 1.57 | O64: 1.546 | P64: 1.067 | Q64: 1.841 | R64: 2.825 | S64: 0.715 | T64: 2.29 | U64: 2.894 | V64: 3.353 | W64: 2.693 | X64: 2.472 | Y64: 2.025 | Z64: 48.596 | AA64: 0.715 | AB64: 3.503 | AC64: 2.024833333
A65: 2021-03-03 | B65: 1.785 | C65: 3.223 | D65: 0.85 | E65: 3.774 | F65: 2.26 | G65: 2.357 | H65: 1.798 | I65: 1.897 | J65: 2.273 | K65: 1.866 | L65: 1.145 | M65: 0.963 | N65: 2.357 | O65: 1.515 | P65: 1.058 | Q65: 0.65 | R65: 0.711 | S65: 0.696 | T65: 2.296 | U65: 2.094 | V65: 2.168 | W65: 2.006 | X65: 2.509 | Y65: 2.506 | Z65: 44.757 | AA65: 0.65 | AB65: 3.774 | AC65: 1.864875
A66: 2021-03-04 | B66: 2.032 | C66: 1.943 | D66: 1.783 | E66: 1.864 | F66: 2.192 | G66: 2.374 | H66: 3.122 | I66: 2.595 | J66: 2.683 | K66: 2.463 | L66: 4.046 | M66: 1.655 | N66: 1.866 | O66: 1.231 | P66: 0.677 | Q66: 0.748 | R66: 0.724 | S66: 0.746 | T66: 2.73 | U66: 4.086 | V66: 1.795 | W66: 1.734 | X66: 1.701 | Y66: 0.997 | Z66: 47.787 | AA66: 0.677 | AB66: 4.086 | AC66: 1.991125
A67: 2021-03-05 | B67: 1.369 | C67: 4.2 | D67: 2.437 | E67: 3.015 | F67: 3.109 | G67: 2.746 | H67: 2.763 | I67: 2.254 | J67: 1.841 | K67: 2.075 | L67: 2.829 | M67: 2.109 | N67: 1.734 | O67: 1.616 | P67: 0.905 | Q67: 2.538 | R67: 2.894 | S67: 1.316 | T67: 0.771 | U67: 1.249 | V67: 5.324 | W67: 4.574 | X67: 4.798 | Y67: 4.536 | Z67: 63.002 | AA67: 0.771 | AB67: 5.324 | AC67: 2.625083333
A68: 2021-03-06 | B68: 2.465 | C68: 2.511 | D68: 2.217 | E68: 2.079 | F68: 1.989 | G68: 1.923 | H68: 1.783 | I68: 1.664 | J68: 2.132 | K68: 1.961 | L68: 1.743 | M68: 1.473 | N68: 1.55 | O68: 2.989 | P68: 2.066 | Q68: 1.77 | R68: 1.951 | S68: 2.208 | T68: 3.694 | U68: 4.512 | V68: 1.875 | W68: 2.469 | X68: 2.404 | Y68: 2.509 | Z68: =SUM(B68:Y68) -> 53.937 | AA68: =MIN(B68:Y68) -> 1.473 | AB68: =MAX(B68:Y68) -> 4.512 | AC68: =AVERAGE(B68:Y68) -> 2.247375
A69: 2021-03-07 | B69: 1.896 | C69: 2.036 | D69: 2.038 | E69: 2.507 | F69: 2.792 | G69: 1.959 | H69: 2.343 | I69: 2.309 | J69: 2.406 | K69: 1.85 | L69: 0.851 | M69: 3.245 | N69: 3.812 | O69: 2.183 | P69: 2.67 | Q69: 3.226 | R69: 2.329 | S69: 1.719 | T69: 2.804 | U69: 2.213 | V69: 2.037 | W69: 1.892 | X69: 1.906 | Y69: 2.583 | Z69: 55.606 | AA69: 0.851 | AB69: 3.812 | AC69: 2.316916667
A70: 2021-03-08 | B70: 4.491 | C70: 3.79 | D70: 2.607 | E70: 2.437 | F70: 2.181 | G70: 2.638 | H70: 3.709 | I70: 3.961 | J70: 3.469 | K70: 2.418 | L70: 1.922 | M70: 1.772 | N70: 0.97 | O70: 0.964 | P70: 0.681 | Q70: 4.478 | R70: 4.512 | S70: 2.555 | T70: 1.077 | U70: 3.35 | V70: 4.362 | W70: 4.763 | X70: 4.393 | Y70: 5.581 | Z70: 73.081 | AA70: 0.681 | AB70: 5.581 | AC70: 3.045041667
A71: 2021-03-09 | B71: 3.918 | C71: 2.932 | D71: 3.636 | E71: 3.457 | F71: 2.674 | G71: 2.272 | H71: 4.541 | I71: 3.532 | J71: 2.625 | K71: 2.55 | L71: 2.494 | M71: 0.722 | N71: 1.354 | O71: 1.184 | P71: 0.645 | Q71: 3.084 | R71: 2.703 | S71: 2.935 | T71: 3.444 | U71: 2.633 | V71: 2.655 | W71: 2.929 | X71: 4.494 | Y71: 3.97 | Z71: 67.383 | AA71: 0.645 | AB71: 4.541 | AC71: 2.807625
A72: 2021-03-10 | B72: 2.483 | C72: 3.575 | D72: 3.47 | E72: 1.257 | F72: 3.914 | G72: 2.56 | H72: 3.481 | I72: 3.491 | J72: 2.407 | K72: 2.09 | L72: 2.313 | M72: 2.299 | N72: 2.197 | O72: 2.447 | P72: 2.276 | Q72: 3.04 | R72: 4.061 | S72: 5.976 | T72: 5.018 | U72: 3.139 | V72: 3.572 | W72: 3.086 | X72: 2.615 | Y72: 2.701 | Z72: 73.468 | AA72: 1.257 | AB72: 5.976 | AC72: 3.061166667
A73: 2021-03-11 | B73: 3.049 | C73: 2.916 | D73: 2.771 | E73: 2.212 | F73: 2.003 | G73: 1.915 | H73: 3.224 | I73: 4.363 | J73: 2.882 | K73: 2.899 | L73: 2.027 | M73: 1.786 | N73: 1.56 | O73: 3.177 | P73: 3.565 | Q73: 2.599 | R73: 1.74 | S73: 2.776 | T73: 1.983 | U73: 2.598 | V73: 2.278 | W73: 3.503 | X73: 2.029 | Y73: 1.647 | Z73: 61.502 | AA73: 1.56 | AB73: 4.363 | AC73: 2.562583333
A74: 2021-03-12 | B74: 1.599 | C74: 1.587 | D74: 1.636 | E74: 1.855 | F74: 2.092 | G74: 2.023 | H74: 3.987 | I74: 3.477 | J74: 1.736 | K74: 1.228 | L74: 4.061 | M74: 3.086 | N74: 2.183 | O74: 0.686 | P74: 2.43 | Q74: 2.485 | R74: 3.056 | S74: 2.097 | T74: 1.78 | U74: 1.517 | V74: 1.67 | W74: 3.748 | X74: 1.945 | Y74: 1.767 | Z74: 53.731 | AA74: 0.686 | AB74: 4.061 | AC74: 2.238791667
A75: 2021-03-13 | B75: 1.605 | C75: 1.771 | D75: 3.259 | E75: 2.379 | F75: 2.115 | G75: 1.895 | H75: 2.623 | I75: 2.053 | J75: 3.324 | K75: 2.623 | L75: 1.953 | M75: 1.507 | N75: 1.215 | O75: 1.491 | P75: 3.028 | Q75: 1.511 | R75: 1.759 | S75: 1.87 | T75: 3.162 | U75: 3.718 | V75: 1.668 | W75: 0.847 | X75: 3.006 | Y75: 2.669 | Z75: 53.051 | AA75: 0.847 | AB75: 3.718 | AC75: 2.210458333
A76: 2021-03-14 | B76: 1.965 | C76: 1.589 | D76: 1.415 | E76: 0.768 | F76: 0.984 | G76: 4.06 | H76: 3.598 | I76: 3.592 | J76: 3.943 | K76: 2.784 | L76: 1.824 | M76: 2.35 | N76: 1.007 | O76: 0.998 | P76: 3.321 | Q76: 2.77 | R76: 1.628 | S76: 2.409 | T76: 2.769 | U76: 4.107 | V76: 3.136 | W76: 1.85 | X76: 2.199 | Y76: 1.843 | Z76: 56.909 | AA76: 0.768 | AB76: 4.107 | AC76: 2.371208333
A77: 2021-03-15 | B77: 1.578 | C77: 2.034 | D77: 2.553 | E77: 2.581 | F77: 4.134 | G77: 2.577 | H77: 2.037 | I77: 1.944 | J77: 1.994 | K77: 1.687 | L77: 1.602 | M77: 1.417 | N77: 1.293 | O77: 0.794 | P77: 2.118 | Q77: 1.809 | R77: 1.3 | S77: 1.521 | T77: 3.208 | U77: 2.011 | V77: 0.723 | W77: 0.772 | X77: 1.161 | Y77: 4.19 | Z77: 47.038 | AA77: 0.723 | AB77: 4.19 | AC77: 1.959916667
A78: 2021-03-16 | B78: 1.854 | C78: 2.538 | D78: 2.343 | E78: 2.301 | F78: 2.038 | G78: 2.584 | H78: 3.86 | I78: 2.814 | J78: 1.907 | K78: 1.186 | L78: 1.534 | M78: 0.59 | N78: 1.705 | O78: 1.428 | P78: 0.604 | Q78: 1.072 | R78: 0.666 | S78: 0.674 | T78: 4.195 | U78: 2.009 | V78: 1.779 | W78: 1.744 | X78: 2.594 | Y78: 1.968 | Z78: 45.987 | AA78: 0.59 | AB78: 4.195 | AC78: 1.916125
A79: 2021-03-17 | B79: 0.826 | C79: 3.955 | D79: 1.756 | E79: 1.635 | F79: 3.483 | G79: 4.45 | H79: 3.461 | I79: 2.728 | J79: 2.572 | K79: 1.856 | L79: 1.471 | M79: 2.451 | N79: 3.482 | O79: 1.82 | P79: 1.935 | Q79: 2.219 | R79: 1.451 | S79: 1.754 | T79: 2.097 | U79: 2.351 | V79: 1.577 | W79: 1.781 | X79: 1.664 | Y79: 1.594 | Z79: 54.369 | AA79: 0.826 | AB79: 4.45 | AC79: 2.265375
A80: 2021-03-18 | B80: 1.7 | C80: 2.174 | D80: 2.343 | E80: 3.002 | F80: 2.208 | G80: 1.933 | H80: 3.392 | I80: 2.863 | J80: 3.264 | K80: 2.099 | L80: 1.834 | M80: 2.463 | N80: 1.569 | O80: 1.376 | P80: 1.534 | Q80: 4.854 | R80: 2.531 | S80: 1.815 | T80: 0.898 | U80: 2.219 | V80: 3.474 | W80: 4.446 | X80: 2.895 | Y80: 1.772 | Z80: 58.658 | AA80: 0.898 | AB80: 4.854 | AC80: 2.444083333
A81: 2021-03-19 | B81: 1.991 | C81: 1.893 | D81: 2.098 | E81: 2.199 | F81: 2.696 | G81: 3.398 | H81: 2.433 | I81: 3.239 | J81: 2.783 | K81: 2.807 | L81: 2.774 | M81: 4.108 | N81: 2.188 | O81: 2.053 | P81: 1.681 | Q81: 2.158 | R81: 2.792 | S81: 2.467 | T81: 1.685 | U81: 2.138 | V81: 1.076 | W81: 1.572 | X81: 2.636 | Y81: 2.189 | Z81: 57.054 | AA81: 1.076 | AB81: 4.108 | AC81: 2.37725
A82: 2021-03-20 | B82: 2.166 | C82: 2.927 | D82: 2.501 | E82: 1.946 | F82: 2.919 | G82: 2.572 | H82: 2.097 | I82: 1.623 | J82: 1.571 | K82: 2.592 | L82: 1.349 | M82: 0.674 | N82: 1.116 | O82: 1.879 | P82: 0.692 | Q82: 2.887 | R82: 4.157 | S82: 1.928 | T82: 2.962 | U82: 2.797 | V82: 2.076 | W82: 1.718 | X82: 3.198 | Y82: 2.38 | Z82: 52.727 | AA82: 0.674 | AB82: 4.157 | AC82: 2.196958333
A83: 2021-03-21 | B83: 2.956 | C83: 2.314 | D83: 2.046 | E83: 1.741 | F83: 2.059 | G83: 1.788 | H83: 1.813 | I83: 1.888 | J83: 3.171 | K83: 3.125 | L83: 1.823 | M83: 1.556 | N83: 3.417 | O83: 4.256 | P83: 1.529 | Q83: 1.601 | R83: 2.312 | S83: 1.613 | T83: 2.271 | U83: 0.996 | V83: 1.941 | W83: 2.352 | X83: 2.094 | Y83: 1.963 | Z83: 52.625 | AA83: 0.996 | AB83: 4.256 | AC83: 2.192708333
A84: 2021-03-22 | B84: 2.089 | C84: 2.078 | D84: 2.173 | E84: 2.793 | F84: 2.06 | G84: 2.222 | H84: 1.945 | I84: 1.491 | J84: 2.225 | K84: 1.317 | L84: 2.217 | M84: 3.056 | N84: 1.095 | O84: 0.703 | P84: 2.496 | Q84: 3.085 | R84: 2.514 | S84: 1.872 | T84: 3.865 | U84: 3.397 | V84: 1.301 | W84: 0.798 | X84: 0.84 | Y84: 3.381 | Z84: 51.013 | AA84: 0.703 | AB84: 3.865 | AC84: 2.125541667
A85: 2021-03-23 | B85: 3.515 | C85: 2.936 | D85: 2.081 | E85: 1.702 | F85: 1.6 | G85: 1.692 | H85: 1.621 | I85: 1.554 | J85: 2.394 | K85: 1.909 | L85: 2.5 | M85: 5.349 | N85: 2.754 | O85: 1.638 | P85: 0.724 | Q85: 4.316 | R85: 2.684 | S85: 3.249 | T85: 2.791 | U85: 1.749 | V85: 0.854 | W85: 2.69 | X85: 2.039 | Y85: 1.948 | Z85: 56.289 | AA85: 0.724 | AB85: 5.349 | AC85: 2.345375
A86: 2021-03-24 | B86: 2.395 | C86: 3.544 | D86: 0.763 | E86: 1.917 | F86: 2.179 | G86: 2.51 | H86: 2.008 | I86: 1.573 | J86: 1.728 | K86: 1.263 | L86: 1.243 | M86: 2.049 | N86: 1.653 | O86: 1.181 | P86: 1.54 | Q86: 1.187 | R86: 2.77 | S86: 2.225 | T86: 1.727 | U86: 1.986 | V86: 1.623 | W86: 0.903 | X86: 2.924 | Y86: 2.781 | Z86: 45.672 | AA86: 0.763 | AB86: 3.544 | AC86: 1.903
A87: 2021-03-25 | B87: 2.123 | C87: 1.856 | D87: 1.801 | E87: 1.856 | F87: 1.683 | G87: 1.809 | H87: 2.288 | I87: 1.975 | J87: 2.238 | K87: 1.617 | L87: 1.666 | M87: 1.772 | N87: 4.334 | O87: 0.898 | P87: 0.648 | Q87: 1.035 | R87: 0.736 | S87: 2.305 | T87: 2.042 | U87: 1.101 | V87: 1.405 | W87: 3.218 | X87: 2.698 | Y87: 2.36 | Z87: 45.464 | AA87: 0.648 | AB87: 4.334 | AC87: 1.894333333
A88: 2021-03-26 | B88: 1.818 | C88: 1.806 | D88: 1.694 | E88: 3.749 | F88: 1.938 | G88: 1.627 | H88: 1.754 | I88: 3.835 | J88: 2.765 | K88: 2.203 | L88: 2.534 | M88: 2.295 | N88: 1.891 | O88: 0.792 | P88: 1.239 | Q88: 4.611 | R88: 2.791 | S88: 1.653 | T88: 1.141 | U88: 2.252 | V88: 2.547 | W88: 1.645 | X88: 0.952 | Y88: 0.814 | Z88: 50.346 | AA88: 0.792 | AB88: 4.611 | AC88: 2.09775
A89: 2021-03-27 | B89: 0.748 | C89: 0.762 | D89: 2.07 | E89: 2.199 | F89: 1.951 | G89: 1.536 | H89: 1.545 | I89: 2.384 | J89: 2.122 | K89: 1.599 | L89: 0.87 | M89: 0.945 | N89: 1.232 | O89: 0.844 | P89: 1.527 | Q89: 4.168 | R89: 5.407 | S89: 2.288 | T89: 1.917 | U89: 3.634 | V89: 2.231 | W89: 1.941 | X89: 2.018 | Y89: 2.215 | Z89: 48.153 | AA89: 0.748 | AB89: 5.407 | AC89: 2.006375
A90: 2021-03-28 | B90: 2.037 | C90: 1.946 | D90: 1.802 | E90: 1.645 | F90: 1.599 | G90: 1.479 | H90: 1.695 | I90: 1.594 | J90: 1.641 | K90: 2.3 | L90: 2.68 | M90: 4.697 | N90: 5.115 | O90: 2.506 | P90: 1.905 | Q90: 1.354 | R90: 1.363 | S90: 1.374 | T90: 1.408 | U90: 1.429 | V90: 1.389 | W90: 1.37 | X90: 1.525 | Z90: 45.853 | AA90: 1.354 | AB90: 5.115 | AC90: 1.993608696
A91: 2021-03-29 | B91: 1.616 | C91: 1.521 | D91: 1.408 | E91: 1.362 | F91: 1.336 | G91: 1.389 | H91: 1.394 | I91: 1.451 | J91: 1.423 | K91: 1.452 | L91: 1.486 | M91: 1.595 | N91: 0.805 | O91: 1.864 | P91: 0.977 | Q91: 1.407 | R91: 2.501 | S91: 0.989 | T91: 0.755 | U91: 2.247 | V91: 1.711 | W91: 1.373 | X91: 1.334 | Y91: 1.341 | Z91: 34.737 | AA91: 0.755 | AB91: 2.501 | AC91: 1.447375
A92: 2021-03-30 | B92: 1.335 | C92: 1.335 | D92: 1.319 | E92: 1.293 | F92: 1.244 | G92: 1.273 | H92: 1.317 | I92: 1.43 | J92: 1.51 | K92: 1.489 | L92: 1.447 | M92: 1.048 | N92: 0.73 | O92: 1.258 | P92: 2.089 | Q92: 1.26 | R92: 0.727 | S92: 0.736 | T92: 0.823 | U92: 2.517 | V92: 1.503 | W92: 1.325 | X92: 1.313 | Y92: 1.327 | Z92: 31.648 | AA92: 0.727 | AB92: 2.517 | AC92: 1.318666667
A93: 2021-03-31 | B93: 1.332 | C93: 3.365 | D93: 3.177 | E93: 0.642 | F93: 1.429 | G93: 2.312 | H93: 1.651 | I93: 1.769 | J93: 1.66 | K93: 1.519 | L93: 1.464 | M93: 1.458 | N93: 1.441 | O93: 1.457 | P93: 1.434 | Q93: 1.438 | R93: 2.273 | S93: 1.649 | T93: 1.44 | U93: 2.746 | V93: 5.811 | W93: 4.389 | X93: 1.618 | Y93: 3.02 | Z93: 50.494 | AA93: 0.642 | AB93: 5.811 | AC93: 2.103916667
A94: 2021-04-01 | B94: 1.544 | C94: 1.53 | D94: 1.482 | E94: 1.554 | F94: 1.78 | G94: 1.539 | H94: 1.547 | I94: 1.672 | J94: 2.3 | K94: 1.603 | L94: 1.43 | M94: 1.374 | N94: 1.646 | O94: 1.997 | P94: 2.507 | Q94: 2.907 | R94: 2.039 | S94: 1.444 | T94: 1.769 | U94: 2.663 | V94: 2.585 | W94: 2.15 | X94: 3.401 | Y94: 4.799 | Z94: 49.262 | AA94: 1.374 | AB94: 4.799 | AC94: 2.052583333
A95: 2021-04-02 | B95: 2.125 | C95: 2.012 | D95: 1.749 | E95: 1.487 | F95: 1.529 | G95: 1.579 | H95: 1.495 | I95: 3.059 | J95: 2.396 | K95: 1.523 | L95: 1.465 | M95: 1.387 | N95: 1.399 | O95: 1.805 | P95: 2.468 | Q95: 0.849 | R95: 2.815 | S95: 2.199 | T95: 2.758 | U95: 2.23 | V95: 2.433 | W95: 3.362 | X95: 3.748 | Y95: 5.383 | Z95: 53.255 | AA95: 0.849 | AB95: 5.383 | AC95: 2.218958333
A96: 2021-04-03 | B96: 2.329 | C96: 3.551 | D96: 3.264 | E96: 2.882 | F96: 2.696 | G96: 2.515 | H96: 2.434 | I96: 2.75 | J96: 2.782 | K96: 2.08 | L96: 3.097 | M96: 3.043 | N96: 2.06 | O96: 3.402 | P96: 2.541 | Q96: 2.252 | R96: 1.394 | S96: 1.443 | T96: 1.966 | U96: 3.135 | V96: 2.55 | W96: 1.693 | X96: 1.551 | Y96: 1.535 | Z96: 58.945 | AA96: 1.394 | AB96: 3.551 | AC96: 2.456041667
A97: 2021-04-04 | B97: 1.499 | C97: 1.53 | D97: 1.643 | E97: 1.598 | F97: 1.508 | G97: 1.535 | H97: 1.542 | I97: 1.547 | J97: 2.21 | K97: 2.421 | L97: 1.659 | M97: 2 | N97: 1.538 | O97: 1.537 | P97: 2.361 | Q97: 4.948 | R97: 4.459 | S97: 5.423 | T97: 2.795 | U97: 2.114 | V97: 2.361 | W97: 2.59 | X97: 2.77 | Y97: 3.652 | Z97: 57.24 | AA97: 1.499 | AB97: 5.423 | AC97: 2.385
A98: 2021-04-05 | B98: 3.548 | C98: 2.557 | D98: 2.455 | E98: 2.296 | F98: 3.077 | G98: 3.206 | H98: 2.732 | I98: 2.368 | J98: 2.624 | K98: 2.296 | L98: 1.97 | M98: 1.61 | N98: 3.004 | O98: 4.502 | P98: 5.678 | Q98: 3.172 | R98: 3.096 | S98: 2.159 | T98: 1.833 | U98: 2.338 | V98: 1.893 | W98: 2.331 | X98: 2.221 | Y98: 2.198 | Z98: 65.164 | AA98: 1.61 | AB98: 5.678 | AC98: 2.715166667
A99: 2021-04-06 | B99: 2.363 | C99: 3.332 | D99: 2.549 | E99: 2.448 | F99: 2.145 | G99: 2.304 | H99: 2.692 | I99: 2.595 | J99: 2.188 | K99: 2.573 | L99: 1.845 | M99: 1.893 | N99: 1.789 | O99: 1.922 | P99: 1.569 | Q99: 2.058 | R99: 1.783 | S99: 1.95 | T99: 1.943 | U99: 2.135 | V99: 1.962 | W99: 3.802 | X99: 7.208 | Y99: 6.272 | Z99: 63.32 | AA99: 1.569 | AB99: 7.208 | AC99: 2.638333333
A100: 2021-04-07 | B100: 2.912 | C100: 3.038 | D100: 0.889 | E100: 0.849 | F100: 1.991 | G100: 4.879 | H100: 2.424 | I100: 3.396 | J100: 2.297 | K100: 2.002 | L100: 1.86 | M100: 1.667 | N100: 1.446 | O100: 1.456 | P100: 1.599 | Q100: 2.766 | R100: 1.877 | S100: 1.884 | T100: 2.389 | U100: 3.261 | V100: 4.474 | W100: 2.976 | X100: 2.279 | Y100: 2.658 | Z100: 57.269 | AA100: 0.849 | AB100: 4.879 | AC100: 2.386208333
A101: 2021-04-08 | B101: 1.952 | C101: 2.332 | D101: 2.405 | E101: 2.306 | F101: 3.156 | G101: 2.807 | H101: 2.391 | I101: 2.774 | J101: 1.983 | K101: 1.598 | L101: 1.485 | M101: 1.88 | N101: 1.862 | O101: 2.384 | P101: 2.721 | Q101: 3.073 | R101: 3.547 | S101: 5.38 | T101: 5.83 | U101: 4.257 | V101: 2.313 | W101: 2.206 | X101: 1.937 | Y101: 1.738 | Z101: 64.317 | AA101: 1.485 | AB101: 5.83 | AC101: 2.679875
A102: 2021-04-09 | B102: 1.956 | C102: 1.591 | D102: 2.058 | E102: 2.333 | F102: 2.047 | G102: 2.064 | H102: 2.484 | I102: 2.053 | J102: 1.907 | K102: 1.944 | L102: 3.344 | M102: 4.916 | N102: 1.561 | O102: 1.49 | P102: 2.562 | Q102: 2.9 | R102: 1.689 | S102: 1.518 | T102: 1.895 | U102: 2.281 | V102: 2.479 | W102: 2.078 | X102: 1.996 | Y102: 2.816 | Z102: 53.962 | AA102: 1.49 | AB102: 4.916 | AC102: 2.248416667
A103: 2021-04-10 | B103: 2.431 | C103: 2.038 | D103: 1.95 | E103: 2.269 | F103: 2.49 | G103: 2.064 | H103: 1.976 | I103: 1.965 | J103: 2.283 | K103: 1.745 | L103: 1.739 | M103: 2.196 | N103: 5.064 | O103: 2.032 | P103: 1.442 | Q103: 1.628 | R103: 2.124 | S103: 1.165 | T103: 1.249 | U103: 2.011 | V103: 1.179 | W103: 2.632 | X103: 4.606 | Y103: 2.11 | Z103: 52.388 | AA103: 1.165 | AB103: 5.064 | AC103: 2.182833333
A104: 2021-04-11 | B104: 2.421 | C104: 2.235 | D104: 2.331 | E104: 2.755 | F104: 3.023 | G104: 2.68 | H104: 2.169 | I104: 2.35 | J104: 2.653 | K104: 2.214 | L104: 1.545 | M104: 1.703 | N104: 2.123 | O104: 3.056 | P104: 2.43 | Q104: 2.47 | R104: 2.274 | S104: 3.94 | T104: 4.677 | U104: 4.962 | V104: 4.924 | W104: 5.3 | X104: 4.236 | Y104: 2.976 | Z104: 71.447 | AA104: 1.545 | AB104: 5.3 | AC104: 2.976958333
A105: 2021-04-12 | B105: 2.386 | C105: 2.6 | D105: 2.384 | E105: 2.132 | F105: 2.016 | G105: 2.212 | H105: 3.007 | I105: 2.414 | J105: 1.945 | K105: 1.611 | L105: 1.508 | M105: 0.808 | N105: 0.722 | O105: 1.556 | P105: 3.995 | Q105: 6.756 | R105: 3.022 | S105: 0.747 | T105: 0.813 | U105: 2.138 | V105: 5.027 | W105: 2.191 | X105: 1.718 | Y105: 2.189 | Z105: 55.897 | AA105: 0.722 | AB105: 6.756 | AC105: 2.329041667
A106: 2021-04-13 | B106: 2.135 | C106: 2.118 | D106: 2.07 | E106: 2.09 | F106: 2.061 | G106: 2.844 | H106: 2.617 | I106: 3.179 | J106: 1.867 | K106: 1.495 | L106: 1.627 | M106: 1.514 | N106: 1.611 | O106: 1.537 | P106: 1.772 | Q106: 2.436 | R106: 1.757 | S106: 1.426 | T106: 1.536 | U106: 1.668 | V106: 2.308 | W106: 5.056 | X106: 4.516 | Y106: 5.216 | Z106: 56.456 | AA106: 1.426 | AB106: 5.216 | AC106: 2.352333333
A107: 2021-04-14 | B107: 2.467 | C107: 2.89 | D107: 0.878 | E107: 1.172 | F107: 4.423 | G107: 4.644 | H107: 2.83 | I107: 2.424 | J107: 2.172 | K107: 1.752 | L107: 2.635 | M107: 2.425 | N107: 1.636 | O107: 1.555 | P107: 1.678 | Q107: 2.334 | R107: 1.816 | S107: 1.553 | T107: 1.144 | U107: 2.92 | V107: 4.542 | W107: 4.013 | X107: 1.675 | Y107: 1.69 | Z107: 57.268 | AA107: 0.878 | AB107: 4.644 | AC107: 2.386166667
A108: 2021-04-15 | B108: 1.645 | C108: 1.567 | D108: 1.476 | E108: 1.522 | F108: 2.166 | G108: 2.753 | H108: 2.756 | I108: 2.413 | J108: 1.902 | K108: 1.422 | L108: 0.607 | M108: 0.525 | N108: 1.696 | O108: 1.67 | P108: 1.497 | Q108: 1.2 | R108: 0.866 | S108: 0.871 | T108: 2.071 | U108: 3.324 | V108: 2.476 | W108: 1.488 | X108: 2.166 | Y108: 1.572 | Z108: 41.651 | AA108: 0.525 | AB108: 3.324 | AC108: 1.735458333
A109: 2021-04-16 | B109: 1.841 | C109: 1.532 | D109: 1.515 | E109: 1.543 | F109: 1.533 | G109: 2.142 | H109: 3.632 | I109: 2.509 | J109: 1.712 | K109: 1.46 | L109: 2.026 | M109: 0.743 | N109: 0.859 | O109: 1.685 | P109: 1.623 | Q109: 3.751 | R109: 0.938 | S109: 0.547 | T109: 0.58 | U109: 1.864 | V109: 2.645 | W109: 2.126 | X109: 1.511 | Y109: 1.55 | Z109: 41.867 | AA109: 0.547 | AB109: 3.751 | AC109: 1.744458333
A110: 2021-04-17 | B110: 1.575 | C110: 1.553 | D110: 1.516 | E110: 1.541 | F110: 1.882 | G110: 2.025 | H110: 2.034 | I110: 1.954 | J110: 2.064 | K110: 2.089 | L110: 0.763 | M110: 0.477 | N110: 0.443 | O110: 1.408 | P110: 1.678 | Q110: 1.549 | R110: 1.284 | S110: 0.59 | T110: 0.876 | U110: 1.903 | V110: 0.9 | W110: 2.353 | X110: 2.272 | Y110: 1.845 | Z110: 36.574 | AA110: 0.443 | AB110: 2.353 | AC110: 1.523916667
A111: 2021-04-18 | B111: 1.751 | C111: 1.817 | D111: 2.211 | E111: 2.288 | F111: 2 | G111: 1.765 | H111: 1.873 | I111: 2.068 | J111: 2.585 | K111: 0.833 | L111: 0.674 | M111: 0.585 | N111: 1.005 | O111: 1.682 | P111: 1.758 | Q111: 1.967 | R111: 0.501 | S111: 0.494 | T111: 1.698 | U111: 1.765 | V111: 1.761 | W111: 2.046 | X111: 2.27 | Y111: 2.229 | Z111: 39.626 | AA111: 0.494 | AB111: 2.585 | AC111: 1.651083333
A112: 2021-04-19 | B112: 1.536 | C112: 1.62 | D112: 1.984 | E112: 1.692 | F112: 1.574 | G112: 1.629 | H112: 1.676 | I112: 1.621 | J112: 0.768 | K112: 0.602 | L112: 0.636 | M112: 0.481 | N112: 0.458 | O112: 0.492 | P112: 1.203 | Q112: 1.684 | R112: 2.13 | S112: 0.845 | T112: 1.032 | U112: 0.862 | V112: 0.499 | W112: 1.908 | X112: 2.476 | Y112: 2.328 | Z112: 31.736 | AA112: 0.458 | AB112: 2.476 | AC112: 1.322333333
A113: 2021-04-20 | B113: 1.522 | C113: 1.634 | D113: 1.551 | E113: 1.426 | F113: 0.746 | G113: 0.739 | H113: 1.02 | I113: 3.03 | J113: 3.252 | K113: 0.991 | L113: 0.45 | M113: 0.399 | N113: 0.404 | O113: 0.411 | P113: 1.243 | Q113: 2.199 | R113: 2.511 | S113: 1.107 | T113: 1.095 | U113: 0.782 | V113: 0.723 | W113: 2.646 | X113: 3.187 | Y113: 1.903 | Z113: 34.971 | AA113: 0.399 | AB113: 3.252 | AC113: 1.457125
A114: 2021-04-21 | B114: 1.442 | C114: 2.625 | D114: 0.712 | E114: 0.686 | F114: 0.765 | G114: 1.038 | H114: 3.594 | I114: 4.927 | J114: 1.486 | K114: 1.702 | L114: 2.08 | M114: 2.217 | N114: 1.691 | O114: 1.487 | P114: 1.818 | Q114: 2.23 | R114: 3.773 | S114: 2.255 | T114: 1.534 | U114: 1.299 | V114: 3.884 | W114: 4.07 | X114: 4.697 | Y114: 1.809 | Z114: 53.821 | AA114: 0.686 | AB114: 4.927 | AC114: 2.242541667
A115: 2021-04-22 | B115: 1.983 | C115: 1.93 | D115: 1.769 | E115: 1.543 | F115: 1.493 | G115: 1.6 | H115: 1.847 | I115: 2.944 | J115: 1.545 | K115: 1.416 | L115: 1.34 | M115: 1.253 | N115: 1.302 | O115: 1.294 | P115: 1.516 | Q115: 0.987 | R115: 0.92 | S115: 0.98 | T115: 1.281 | U115: 1.024 | V115: 2.693 | W115: 4.852 | X115: 2.198 | Y115: 1.676 | Z115: 41.386 | AA115: 0.92 | AB115: 4.852 | AC115: 1.724416667
A116: 2021-04-23 | B116: 1.872 | C116: 1.62 | D116: 1.813 | E116: 1.514 | F116: 1.523 | G116: 1.9 | H116: 2.398 | I116: 1.831 | J116: 1.335 | K116: 0.645 | L116: 0.614 | M116: 0.605 | N116: 1.618 | O116: 3.55 | P116: 2.139 | Q116: 1.244 | R116: 1.735 | S116: 1.687 | T116: 0.889 | U116: 1.599 | V116: 1.225 | W116: 1.333 | X116: 1.273 | Y116: 4.179 | Z116: 40.141 | AA116: 0.605 | AB116: 4.179 | AC116: 1.672541667
A117: 2021-04-24 | B117: 3.408 | C117: 1.777 | D117: 1.889 | E117: 1.845 | F117: 1.602 | G117: 1.61 | H117: 1.603 | I117: 1.567 | J117: 2.064 | K117: 1.602 | L117: 2.889 | M117: 1.746 | N117: 1.911 | O117: 2.44 | P117: 3.903 | Q117: 1.371 | R117: 2.541 | S117: 2.295 | T117: 0.896 | U117: 1.565 | V117: 1.205 | W117: 1.611 | X117: 3.383 | Y117: 3.319 | Z117: 50.042 | AA117: 0.896 | AB117: 3.903 | AC117: 2.085083333
A118: 2021-04-25 | B118: 1.492 | C118: 1.493 | D118: 1.504 | E118: 1.526 | F118: 1.556 | G118: 1.988 | H118: 2.109 | I118: 1.889 | J118: 1.78 | K118: 2.26 | L118: 1.079 | M118: 0.995 | N118: 0.678 | O118: 0.479 | P118: 1.622 | Q118: 1.858 | R118: 1.824 | S118: 1.248 | T118: 1.256 | U118: 0.659 | V118: 0.615 | W118: 0.641 | X118: 0.778 | Y118: 1.876 | Z118: 33.205 | AA118: 0.479 | AB118: 2.26 | AC118: 1.383541667
A119: 2021-04-26 | B119: 3.839 | C119: 2.237 | D119: 1.462 | E119: 1.468 | F119: 1.478 | G119: 1.688 | H119: 1.837 | I119: 1.972 | J119: 1.706 | K119: 1.641 | L119: 1.267 | M119: 0.915 | N119: 0.904 | O119: 1.859 | P119: 2.094 | Q119: 1.424 | R119: 0.553 | S119: 0.585 | T119: 0.615 | U119: 0.714 | V119: 0.657 | W119: 1.834 | X119: 4.678 | Y119: 3.723 | Z119: 41.15 | AA119: 0.553 | AB119: 4.678 | AC119: 1.714583333
A120: 2021-04-27 | B120: 1.559 | C120: 2.398 | D120: 1.851 | E120: 1.96 | F120: 1.528 | G120: 1.63 | H120: 1.809 | I120: 1.47 | J120: 1.592 | K120: 1.384 | L120: 1.383 | M120: 1.117 | N120: 0.529 | O120: 0.553 | P120: 0.533 | Q120: 0.768 | R120: 1.951 | S120: 1.994 | T120: 2.146 | U120: 2.562 | V120: 3.169 | W120: 1.423 | X120: 1.497 | Y120: 1.521 | Z120: 38.327 | AA120: 0.529 | AB120: 3.169 | AC120: 1.596958333
A121: 2021-04-28 | B121: 1.529 | C121: 3.19 | D121: 0.761 | E121: 0.789 | F121: 0.813 | G121: 1.691 | H121: 4.301 | I121: 3.211 | J121: 1.562 | K121: 0.963 | L121: 1.094 | M121: 0.546 | N121: 1.03 | O121: 1.944 | P121: 3.08 | Q121: 1.471 | R121: 1.412 | S121: 1.382 | T121: 1.734 | U121: 2.406 | V121: 2.177 | W121: 1.658 | X121: 1.628 | Y121: 1.564 | Z121: 41.936 | AA121: 0.546 | AB121: 4.301 | AC121: 1.747333333
A122: 2021-04-29 | B122: 1.532 | C122: 1.88 | D122: 2.508 | E122: 1.999 | F122: 1.621 | G122: 1.825 | H122: 1.764 | I122: 1.895 | J122: 0.964 | K122: 0.635 | L122: 1.05 | M122: 1.784 | N122: 1.793 | O122: 0.831 | P122: 0.784 | Q122: 3.254 | R122: 2.37 | S122: 1.739 | T122: 0.808 | U122: 0.791 | V122: 0.914 | W122: 2.91 | X122: 5.067 | Y122: 3.062 | Z122: 43.78 | AA122: 0.635 | AB122: 5.067 | AC122: 1.824166667
A123: 2021-04-30 | B123: 1.587 | C123: 1.583 | D123: 1.87 | E123: 1.752 | F123: 2.17 | G123: 2.498 | H123: 2.26 | I123: 1.982 | J123: 1.309 | K123: 0.617 | L123: 0.532 | M123: 1.084 | N123: 1.702 | O123: 1.725 | P123: 0.694 | Q123: 1.591 | R123: 1.656 | S123: 1.778 | T123: 1.864 | U123: 1.818 | V123: 1.875 | W123: 2.295 | X123: 1.629 | Y123: 1.959 | Z123: 39.83 | AA123: 0.532 | AB123: 2.498 | AC123: 1.659583333
A124: 2021-05-01 | B124: 1.585 | C124: 1.617 | D124: 1.55 | E124: 1.511 | F124: 1.492 | G124: 1.659 | H124: 1.83 | I124: 1.992 | J124: 1.632 | K124: 0.723 | L124: 1.589 | M124: 1.901 | N124: 1.773 | O124: 1.59 | P124: 0.831 | Q124: 1.692 | R124: 2.025 | S124: 2.026 | T124: 2.55 | U124: 2.563 | V124: 0.652 | W124: 0.898 | X124: 3.616 | Y124: 5.035 | Z124: 44.332 | AA124: 0.652 | AB124: 5.035 | AC124: 1.847166667
A125: 2021-05-02 | B125: 1.705 | C125: 2.006 | D125: 1.937 | E125: 2.068 | F125: 1.951 | G125: 1.928 | H125: 1.741 | I125: 1.627 | J125: 2.392 | K125: 1.864 | L125: 1.413 | M125: 1.141 | N125: 1.955 | O125: 2.748 | P125: 2.859 | Q125: 3.28 | R125: 3.352 | S125: 3.055 | T125: 1.735 | U125: 1.606 | V125: 1.558 | W125: 1.52 | X125: 1.623 | Y125: 1.559 | Z125: 48.623 | AA125: 1.141 | AB125: 3.352 | AC125: 2.025958333
A126: 2021-05-03 | B126: 1.5 | C126: 2.482 | D126: 2.074 | E126: 1.546 | F126: 1.527 | G126: 1.828 | H126: 2.029 | I126: 1.835 | J126: 1.491 | K126: 1.523 | L126: 1.676 | M126: 1.188 | N126: 1.07 | O126: 0.65 | P126: 1.758 | Q126: 3.082 | R126: 2.048 | S126: 0.483 | T126: 0.46 | U126: 1.515 | V126: 4.672 | W126: 5.155 | X126: 2.506 | Y126: 1.615 | Z126: 45.713 | AA126: 0.46 | AB126: 5.155 | AC126: 1.904708333
A127: 2021-05-04 | B127: 1.869 | C127: 1.737 | D127: 1.697 | E127: 2.264 | F127: 1.768 | G127: 1.805 | H127: 1.667 | I127: 1.712 | J127: 1.704 | K127: 1.616 | L127: 1.88 | M127: 1.16 | N127: 0.67 | O127: 0.63 | P127: 1.83 | Q127: 3.541 | R127: 1.894 | S127: 1.041 | T127: 0.699 | U127: 1.693 | V127: 1.811 | W127: 2.248 | X127: 2.139 | Y127: 1.709 | Z127: 40.784 | AA127: 0.63 | AB127: 3.541 | AC127: 1.699333333
A128: 2021-05-05 | B128: 1.676 | C128: 4.029 | D128: 0.815 | E128: 1.021 | F128: 0.991 | G128: 3.547 | H128: 3.407 | I128: 1.471 | J128: 0.773 | K128: 1.115 | L128: 1.695 | M128: 1.642 | N128: 0.859 | O128: 1.258 | P128: 1.194 | Q128: 1.931 | R128: 1.733 | S128: 1.186 | T128: 1.652 | U128: 0.963 | V128: 1.596 | W128: 2.216 | X128: 4.863 | Y128: 1.461 | Z128: 43.094 | AA128: 0.773 | AB128: 4.863 | AC128: 1.795583333
A129: 2021-05-06 | B129: 1.431 | C129: 1.438 | D129: 1.452 | E129: 1.47 | F129: 1.465 | G129: 1.567 | H129: 1.566 | I129: 1.664 | J129: 1.762 | K129: 1.662 | L129: 1.055 | M129: 0.999 | N129: 3.4 | O129: 4.04 | P129: 1.671 | Q129: 1.689 | R129: 1.609 | S129: 4.359 | T129: 2.151 | U129: 3.357 | V129: 2.755 | W129: 1.836 | X129: 1.551 | Y129: 1.549 | Z129: 47.498 | AA129: 0.999 | AB129: 4.359 | AC129: 1.979083333
A130: 2021-05-07 | B130: 2.377 | C130: 1.746 | D130: 3.342 | E130: 3.225 | F130: 1.499 | G130: 1.921 | H130: 1.915 | I130: 1.803 | J130: 1.308 | K130: 0.612 | L130: 0.762 | M130: 2.817 | N130: 4.049 | O130: 2.377 | P130: 0.537 | Q130: 0.547 | R130: 1.469 | S130: 2.578 | T130: 1.926 | U130: 1.396 | V130: 1.247 | W130: 1.429 | X130: 1.424 | Y130: 0.756 | Z130: 43.062 | AA130: 0.537 | AB130: 4.049 | AC130: 1.79425
A131: 2021-05-08 | B131: 0.724 | C131: 0.722 | D131: 2.575 | E131: 4.503 | F131: 1.588 | G131: 1.724 | H131: 1.65 | I131: 1.718 | J131: 1.646 | K131: 0.823 | L131: 1.319 | M131: 1.793 | N131: 1.756 | O131: 1.965 | P131: 1.098 | Q131: 1.333 | R131: 1.482 | S131: 1.83 | T131: 2.071 | U131: 0.787 | V131: 0.779 | W131: 2.526 | X131: 4.996 | Y131: 1.752 | Z131: 43.16 | AA131: 0.722 | AB131: 4.996 | AC131: 1.798333333
A132: 2021-05-09 | B132: 1.706 | C132: 1.736 | D132: 1.688 | E132: 1.565 | F132: 1.539 | G132: 1.584 | H132: 1.534 | I132: 1.539 | J132: 0.854 | K132: 0.88 | L132: 2.82 | M132: 2.76 | N132: 2.389 | O132: 2.753 | P132: 1.635 | Q132: 1.961 | R132: 0.852 | S132: 1.882 | T132: 1.818 | U132: 1.078 | V132: 0.631 | W132: 1.594 | X132: 1.644 | Y132: 1.831 | Z132: =SUM(B132:Y132) -> 40.273 | AA132: =MIN(B132:Y132) -> 0.631 | AB132: =MAX(B132:Y132) -> 2.82 | AC132: =AVERAGE(B132:Y132) -> 1.678041667
A133: 2021-05-10 | B133: 1.422 | C133: 0.631 | D133: 0.588 | E133: 1.756 | F133: 1.879 | G133: 1.279 | H133: 0.688 | I133: 0.83 | J133: 1.862 | K133: 1.777 | L133: 1 | M133: 0.478 | N133: 0.865 | O133: 0.763 | P133: 0.584 | Q133: 1.337 | R133: 2.187 | S133: 2.128 | T133: 5.335 | U133: 4.365 | V133: 1.459 | W133: 0.839 | X133: 1.646 | Y133: 1.816 | Z133: 37.514 | AA133: 0.478 | AB133: 5.335 | AC133: 1.563083333
A134: 2021-05-11 | B134: 1.92 | C134: 1.696 | D134: 1.023 | E134: 1.298 | F134: 2.032 | G134: 2.227 | H134: 0.768 | I134: 0.679 | J134: 1.569 | K134: 1.777 | L134: 1.452 | M134: 0.417 | N134: 0.401 | O134: 0.394 | P134: 0.566 | Q134: 2.078 | R134: 1.634 | S134: 1.584 | T134: 1.4 | U134: 1.023 | V134: 1.317 | W134: 0.806 | X134: 0.626 | Y134: 0.904 | Z134: 29.591 | AA134: 0.394 | AB134: 2.227 | AC134: 1.232958333
A135: 2021-05-12 | B135: 2.202 | C135: 3.411 | D135: 0.759 | E135: 0.996 | F135: 0.81 | G135: 1.433 | H135: 4.607 | I135: 2.516 | J135: 0.975 | K135: 0.51 | L135: 0.656 | M135: 1.561 | N135: 2.011 | O135: 0.984 | P135: 0.504 | Q135: 0.716 | R135: 1.381 | S135: 1.806 | T135: 1.87 | U135: 0.723 | V135: 0.783 | W135: 0.575 | X135: 0.927 | Y135: 2.41 | Z135: 35.126 | AA135: 0.504 | AB135: 4.607 | AC135: 1.463583333
A136: 2021-05-13 | B136: 3.231 | C136: 1.299 | D136: 0.894 | E136: 1.27 | F136: 0.802 | G136: 1.002 | H136: 0.764 | I136: 1.167 | J136: 2.782 | K136: 2.917 | L136: 2.397 | M136: 0.558 | N136: 0.475 | O136: 1.02 | P136: 1.716 | Q136: 1.631 | R136: 0.537 | S136: 1.04 | T136: 0.908 | U136: 0.569 | V136: 1.668 | W136: 1.991 | X136: 2.035 | Y136: 0.838 | Z136: 33.511 | AA136: 0.475 | AB136: 3.231 | AC136: 1.396291667
A137: 2021-05-14 | B137: 0.655 | C137: 0.66 | D137: 1.828 | E137: 2.134 | F137: 1.803 | G137: 0.67 | H137: 0.682 | I137: 0.654 | J137: 1.444 | K137: 2.389 | L137: 2.1 | M137: 0.718 | N137: 0.7 | O137: 2.437 | P137: 1.089 | Q137: 0.992 | R137: 2.476 | S137: 2.032 | T137: 2.05 | U137: 0.935 | V137: 1.499 | W137: 0.961 | X137: 2.186 | Y137: 1.816 | Z137: 34.91 | AA137: 0.654 | AB137: 2.476 | AC137: 1.454583333
A138: 2021-05-15 | B138: 1.011 | C138: 0.576 | D138: 0.589 | E138: 1.109 | F138: 1.959 | G138: 1.09 | H138: 1.951 | I138: 1.251 | J138: 1.207 | K138: 0.851 | L138: 1.121 | M138: 2.537 | N138: 3.565 | O138: 2.458 | P138: 0.874 | Q138: 0.644 | R138: 0.73 | S138: 1.817 | T138: 2.085 | U138: 3.304 | V138: 1.274 | W138: 0.675 | X138: 0.969 | Y138: 2.013 | Z138: 35.66 | AA138: 0.576 | AB138: 3.565 | AC138: 1.485833333
A139: 2021-05-16 | B139: 2.498 | C139: 1.717 | D139: 0.852 | E139: 0.706 | F139: 0.71 | G139: 0.735 | H139: 0.764 | I139: 2.273 | J139: 4.483 | K139: 2.077 | L139: 1.775 | M139: 0.82 | N139: 0.876 | O139: 2.849 | P139: 3.376 | Q139: 2.51 | R139: 2.805 | S139: 0.661 | T139: 0.792 | U139: 2.248 | V139: 2.701 | W139: 2.298 | X139: 1.809 | Y139: 1.83 | Z139: 44.165 | AA139: 0.661 | AB139: 4.483 | AC139: 1.840208333
A140: 2021-05-17 | B140: 1.612 | C140: 1.59 | D140: 1.545 | E140: 1.416 | F140: 1.505 | G140: 1.512 | H140: 1.381 | I140: 1.119 | J140: 1.132 | K140: 3.626 | L140: 5.624 | M140: 3.618 | N140: 1.02 | O140: 1.254 | P140: 2.717 | Q140: 2.016 | R140: 2.11 | S140: 1.383 | T140: 0.647 | U140: 0.579 | V140: 0.564 | W140: 0.702 | X140: 1.75 | Y140: 2.439 | Z140: 42.861 | AA140: 0.564 | AB140: 5.624 | AC140: 1.785875
A141: 2021-05-18 | B141: 1.919 | C141: 0.719 | D141: 0.711 | E141: 0.777 | F141: 1.137 | G141: 3.843 | H141: 3.41 | I141: 1.655 | J141: 1.26 | K141: 0.646 | L141: 0.574 | M141: 0.632 | N141: 1.752 | O141: 2.367 | P141: 1.414 | Q141: 1.813 | R141: 1.391 | S141: 1.4 | T141: 1.844 | U141: 2.309 | V141: 1.32 | W141: 0.693 | X141: 2.057 | Y141: 3.039 | Z141: 38.682 | AA141: 0.574 | AB141: 3.843 | AC141: 1.61175
A142: 2021-05-19 | B142: 3.304 | C142: 2.579 | D142: 0.76 | E142: 0.756 | F142: 1.111 | G142: 4.078 | H142: 2.824 | I142: 1.712 | J142: 1.479 | K142: 1.428 | L142: 1.007 | M142: 0.599 | N142: 0.618 | O142: 0.545 | P142: 1.369 | Q142: 2.076 | R142: 1.745 | S142: 0.565 | T142: 0.657 | U142: 1.136 | V142: 2.516 | W142: 2.624 | X142: 2.176 | Y142: 1.453 | Z142: 39.117 | AA142: 0.545 | AB142: 4.078 | AC142: 1.629875
A143: 2021-05-20 | B143: 1.434 | C143: 0.768 | D143: 0.665 | E143: 0.627 | F143: 0.717 | G143: 3.2 | H143: 5.331 | I143: 2.177 | J143: 0.801 | K143: 0.621 | L143: 0.561 | M143: 0.501 | N143: 1.126 | O143: 1.748 | P143: 1.634 | Q143: 0.586 | R143: 0.501 | S143: 0.535 | T143: 2.053 | U143: 2.505 | V143: 2.173 | W143: 3.152 | X143: 2.861 | Y143: 1.483 | Z143: 37.76 | AA143: 0.501 | AB143: 5.331 | AC143: 1.573333333
A144: 2021-05-21 | B144: 1.546 | C144: 1.558 | D144: 1.569 | E144: 3.064 | F144: 1.597 | G144: 1.66 | H144: 1.583 | I144: 1.544 | J144: 0.819 | K144: 1.138 | L144: 0.92 | M144: 0.542 | N144: 0.525 | O144: 1.13 | P144: 1.772 | Q144: 2.199 | R144: 1.494 | S144: 1.249 | T144: 0.499 | U144: 0.963 | V144: 1.65 | W144: 1.915 | X144: 1.969 | Y144: 0.645 | Z144: 33.55 | AA144: 0.499 | AB144: 3.064 | AC144: 1.397916667
A145: 2021-05-22 | B145: 1.164 | C145: 1.924 | D145: 2.012 | E145: 0.736 | F145: 1.438 | G145: 2.435 | H145: 2.241 | I145: 1.103 | J145: 0.84 | K145: 1.798 | L145: 2.069 | M145: 1.635 | N145: 0.807 | O145: 0.667 | P145: 0.635 | Q145: 0.948 | R145: 1.203 | S145: 1.811 | T145: 2.869 | U145: 1.39 | V145: 0.596 | W145: 0.732 | X145: 1.553 | Y145: 1.972 | Z145: 34.578 | AA145: 0.596 | AB145: 2.869 | AC145: 1.44075
A146: 2021-05-23 | B146: 2.016 | C146: 0.738 | D146: 0.73 | E146: 0.763 | F146: 2.001 | G146: 2.162 | H146: 1.374 | I146: 1.072 | J146: 0.753 | K146: 2.421 | L146: 2.34 | M146: 1.685 | N146: 1.395 | O146: 0.582 | P146: 0.853 | Q146: 1.86 | R146: 2.435 | S146: 1.099 | T146: 0.563 | U146: 1.606 | V146: 1.96 | W146: 1.995 | X146: 1.308 | Y146: 1.36 | Z146: 35.071 | AA146: 0.563 | AB146: 2.435 | AC146: 1.461291667
A147: 2021-05-24 | B147: 1.355 | C147: 1.361 | D147: 1.398 | E147: 1.46 | F147: 2.086 | G147: 1.547 | H147: 1.778 | I147: 1.198 | J147: 0.883 | K147: 0.603 | L147: 1.28 | M147: 1.357 | N147: 2.188 | O147: 1.692 | P147: 1.785 | Q147: 2.899 | R147: 1.933 | S147: 1.053 | T147: 1.019 | U147: 1.599 | V147: 1.944 | W147: 1.661 | X147: 0.662 | Y147: 0.774 | Z147: 35.515 | AA147: 0.603 | AB147: 2.899 | AC147: 1.479791667
A148: 2021-05-25 | B148: 2.359 | C148: 3.533 | D148: 1.468 | E148: 1.465 | F148: 1.437 | G148: 1.312 | H148: 0.76 | I148: 1.144 | J148: 1.275 | K148: 1.864 | L148: 1.72 | M148: 0.534 | N148: 0.463 | O148: 0.499 | P148: 0.536 | Q148: 1.396 | R148: 1.907 | S148: 1.289 | T148: 1.037 | U148: 1.295 | V148: 0.494 | W148: 0.463 | X148: 0.761 | Y148: 1.793 | Z148: 30.804 | AA148: 0.463 | AB148: 3.533 | AC148: 1.2835
A149: 2021-05-26 | B149: 1.823 | C149: 2.553 | D149: 0.59 | E149: 0.59 | F149: 0.61 | G149: 1.909 | H149: 1.902 | I149: 1.628 | J149: 0.48 | K149: 0.5 | L149: 0.441 | M149: 0.447 | N149: 0.808 | O149: 1.58 | P149: 1.652 | Q149: 0.788 | R149: 0.622 | S149: 0.475 | T149: 0.485 | U149: 0.526 | V149: 0.484 | W149: 0.469 | X149: 0.572 | Y149: 1.66 | Z149: 23.594 | AA149: 0.441 | AB149: 2.553 | AC149: 0.9830833333
A150: 2021-05-27 | B150: 1.716 | C150: 1.314 | D150: 1.155 | E150: 0.835 | F150: 1.685 | G150: 1.85 | H150: 1.746 | I150: 1.326 | J150: 0.576 | K150: 0.457 | L150: 0.467 | M150: 1.302 | N150: 1.457 | O150: 0.813 | P150: 0.459 | Q150: 0.646 | R150: 0.789 | S150: 0.469 | T150: 0.475 | U150: 0.642 | V150: 0.458 | W150: 1.067 | X150: 1.629 | Y150: 1.899 | Z150: 25.232 | AA150: 0.457 | AB150: 1.899 | AC150: 1.051333333
A151: 2021-05-28 | B151: 0.543 | C151: 0.67 | D151: 0.662 | E151: 0.679 | F151: 0.829 | G151: 1.998 | H151: 1.979 | I151: 1.934 | J151: 0.697 | K151: 0.542 | L151: 0.459 | M151: 0.562 | N151: 1.646 | O151: 2.779 | P151: 1.011 | Q151: 1.848 | R151: 0.555 | S151: 0.585 | T151: 0.581 | U151: 0.673 | V151: 0.958 | W151: 1.614 | X151: 1.72 | Y151: 1.258 | Z151: 26.782 | AA151: 0.459 | AB151: 2.779 | AC151: 1.115916667
A152: 2021-05-29 | B152: 0.589 | C152: 0.585 | D152: 0.641 | E152: 1.145 | F152: 2.124 | G152: 2.3 | H152: 1.483 | I152: 1.468 | J152: 1.154 | K152: 1.961 | L152: 1.875 | M152: 1.568 | N152: 0.495 | O152: 0.47 | P152: 1.053 | Q152: 0.588 | R152: 0.664 | S152: 0.413 | T152: 0.485 | U152: 0.481 | V152: 0.464 | W152: 0.462 | X152: 0.473 | Y152: 0.541 | Z152: 23.482 | AA152: 0.413 | AB152: 2.3 | AC152: 0.9784166667
A153: 2021-05-30 | B153: 2.021 | C153: 4.016 | D153: 1.396 | E153: 1.116 | F153: 0.654 | G153: 0.718 | H153: 0.708 | I153: 0.705 | J153: 1.637 | K153: 1.844 | L153: 1.256 | M153: 0.559 | N153: 0.559 | O153: 0.546 | P153: 0.526 | Q153: 1.242 | R153: 2.116 | S153: 1.575 | T153: 1.584 | U153: 0.938 | V153: 0.522 | W153: 0.47 | X153: 0.87 | Y153: 1.926 | Z153: 29.504 | AA153: 0.47 | AB153: 4.016 | AC153: 1.229333333
A154: 2021-05-31 | B154: 2.117 | C154: 1.087 | D154: 0.673 | E154: 0.684 | F154: 0.697 | G154: 0.898 | H154: 1.697 | I154: 2.314 | J154: 1.562 | K154: 0.577 | L154: 0.483 | M154: 0.441 | N154: 0.433 | O154: 1.142 | P154: 1.597 | Q154: 2.01 | R154: 0.948 | S154: 0.489 | T154: 1.296 | U154: 0.554 | V154: 1.966 | W154: 1.673 | X154: 1.739 | Y154: 1.337 | Z154: 28.414 | AA154: 0.433 | AB154: 2.314 | AC154: 1.183916667
A155: 2021-06-01 | B155: 0.66 | C155: 0.65 | D155: 0.637 | E155: 0.647 | F155: 0.689 | G155: 2.098 | H155: 2.27 | I155: 1.353 | J155: 0.615 | K155: 0.496 | L155: 0.455 | M155: 0.464 | N155: 0.435 | O155: 0.461 | P155: 0.606 | Q155: 0.606 | R155: 1.533 | S155: 1.386 | T155: 1.826 | U155: 0.623 | V155: 0.538 | W155: 0.699 | X155: 0.538 | Y155: 0.497 | Z155: 20.782 | AA155: 0.435 | AB155: 2.27 | AC155: 0.8659166667
A156: 2021-06-02 | B156: 0.511 | C156: 3.638 | D156: 0.916 | E156: 0.529 | F156: 0.533 | G156: 1.455 | H156: 1.022 | I156: 1.601 | J156: 1.493 | K156: 0.58 | L156: 0.464 | M156: 0.452 | N156: 0.457 | O156: 1.051 | P156: 1.087 | Q156: 0.753 | R156: 0.708 | S156: 0.56 | T156: 0.54 | U156: 0.618 | V156: 1.42 | W156: 1.452 | X156: 1.632 | Y156: 0.511 | Z156: 23.983 | AA156: 0.452 | AB156: 3.638 | AC156: 0.9992916667
A157: 2021-06-03 | B157: 0.483 | C157: 0.499 | D157: 0.483 | E157: 1.517 | F157: 0.971 | G157: 0.684 | H157: 0.666 | I157: 1.171 | J157: 0.858 | K157: 0.724 | L157: 0.907 | M157: 1.358 | N157: 1.658 | O157: 0.922 | P157: 0.595 | Q157: 1.375 | R157: 1.33 | S157: 0.951 | T157: 1.245 | U157: 1.358 | V157: 0.836 | W157: 1.756 | X157: 1.896 | Y157: 1.417 | Z157: 25.66 | AA157: 0.483 | AB157: 1.896 | AC157: 1.069166667
A158: 2021-06-04 | B158: 0.509 | C158: 0.51 | D158: 0.503 | E158: 0.486 | F158: 0.497 | G158: 0.633 | H158: 0.554 | I158: 0.547 | J158: 1.388 | K158: 1.744 | L158: 1.878 | M158: 1.177 | N158: 0.556 | O158: 0.885 | P158: 0.604 | Q158: 0.936 | R158: 1.354 | S158: 0.586 | T158: 0.612 | U158: 0.794 | V158: 0.885 | W158: 0.609 | X158: 0.916 | Y158: 1.757 | Z158: 20.92 | AA158: 0.486 | AB158: 1.878 | AC158: 0.8716666667
A159: 2021-06-05 | B159: 1.557 | C159: 0.559 | D159: 0.528 | E159: 0.568 | F159: 0.55 | G159: 0.617 | H159: 0.623 | I159: 0.518 | J159: 0.476 | K159: 0.852 | L159: 1.413 | M159: 1.319 | N159: 1.214 | O159: 1.228 | P159: 0.683 | Q159: 0.474 | R159: 0.476 | S159: 0.612 | T159: 0.568 | U159: 1.976 | V159: 0.804 | W159: 0.484 | X159: 0.472 | Y159: 0.58 | Z159: 19.151 | AA159: 0.472 | AB159: 1.976 | AC159: 0.7979583333
A160: 2021-06-06 | B160: 0.556 | C160: 1.622 | D160: 1.56 | E160: 0.486 | F160: 0.485 | G160: 0.506 | H160: 0.593 | I160: 0.426 | J160: 0.449 | K160: 0.868 | L160: 0.559 | M160: 0.527 | N160: 0.504 | O160: 0.476 | P160: 1.551 | Q160: 1.526 | R160: 0.858 | S160: 0.616 | T160: 1.249 | U160: 2.022 | V160: 1.175 | W160: 0.562 | X160: 0.697 | Y160: 0.423 | Z160: 20.296 | AA160: 0.423 | AB160: 2.022 | AC160: 0.8456666667
A161: 2021-06-07 | B161: 0.429 | C161: 0.439 | D161: 0.423 | E161: 0.424 | F161: 0.459 | G161: 0.586 | H161: 0.617 | I161: 1.551 | J161: 1.685 | K161: 2.164 | L161: 0.659 | M161: 0.491 | N161: 0.584 | O161: 0.872 | P161: 2.358 | Q161: 1.736 | R161: 2.189 | S161: 0.63 | T161: 1.035 | U161: 1.048 | V161: 1.442 | W161: 1.387 | X161: 2.288 | Y161: 1.854 | Z161: 27.35 | AA161: 0.423 | AB161: 2.358 | AC161: 1.139583333
A162: 2021-06-08 | B162: 0.578 | C162: 0.557 | D162: 0.556 | E162: 0.571 | F162: 0.57 | G162: 0.662 | H162: 1.855 | I162: 2.487 | J162: 0.813 | K162: 0.49 | L162: 0.5 | M162: 0.472 | N162: 0.482 | O162: 0.44 | P162: 0.491 | Q162: 1.685 | R162: 0.502 | S162: 0.525 | T162: 0.504 | U162: 0.637 | V162: 0.57 | W162: 0.543 | X162: 1.501 | Y162: 1.657 | Z162: 19.648 | AA162: 0.44 | AB162: 2.487 | AC162: 0.8186666667
A163: 2021-06-09 | B163: 1.265 | C163: 2.623 | D163: 0.543 | E163: 0.538 | F163: 0.494 | G163: 0.554 | H163: 0.481 | I163: 1.226 | J163: 0.73 | K163: 0.545 | L163: 0.453 | M163: 0.471 | N163: 0.497 | O163: 0.538 | P163: 0.865 | Q163: 0.548 | R163: 0.493 | S163: 1.041 | T163: 1.59 | U163: 1.358 | V163: 0.465 | W163: 0.523 | X163: 0.534 | Y163: 0.573 | Z163: 18.948 | AA163: 0.453 | AB163: 2.623 | AC163: 0.7895
A164: 2021-06-10 | B164: 0.489 | C164: 0.495 | D164: 0.503 | E164: 0.482 | F164: 0.452 | G164: 0.53 | H164: 0.491 | I164: 1.165 | J164: 1.032 | K164: 0.59 | L164: 0.526 | M164: 0.51 | N164: 1.272 | O164: 1.648 | P164: 0.75 | Q164: 0.707 | R164: 0.641 | S164: 1.526 | T164: 1.261 | U164: 0.616 | V164: 0.95 | W164: 0.575 | X164: 0.482 | Y164: 0.801 | Z164: 18.494 | AA164: 0.452 | AB164: 1.648 | AC164: 0.7705833333
A165: 2021-06-11 | B165: 1.602 | C165: 1.538 | D165: 0.508 | E165: 0.51 | F165: 0.456 | G165: 0.515 | H165: 0.486 | I165: 0.961 | J165: 0.589 | K165: 0.659 | L165: 0.739 | M165: 1.355 | N165: 0.625 | O165: 0.636 | P165: 1.522 | Q165: 2.212 | R165: 2.019 | S165: 1.547 | T165: 0.632 | U165: 0.658 | V165: 0.563 | W165: 1.477 | X165: 1.684 | Y165: 0.952 | Z165: 24.445 | AA165: 0.456 | AB165: 2.212 | AC165: 1.018541667
A166: 2021-06-12 | B166: 0.548 | C166: 0.531 | D166: 0.516 | E166: 0.602 | F166: 0.561 | G166: 0.502 | H166: 0.486 | I166: 0.663 | J166: 0.691 | K166: 1.765 | L166: 1.931 | M166: 2.05 | N166: 1.884 | O166: 1.694 | P166: 3.134 | Q166: 2.704 | R166: 1.465 | S166: 0.769 | T166: 0.735 | U166: 2.281 | V166: 2.764 | W166: 1.813 | X166: 0.699 | Y166: 0.738 | Z166: 31.526 | AA166: 0.486 | AB166: 3.134 | AC166: 1.313583333
A167: 2021-06-13 | B167: 0.73 | C167: 0.722 | D167: 0.715 | E167: 1.013 | F167: 3.308 | G167: 2.51 | H167: 2.192 | I167: 0.97 | J167: 0.681 | K167: 1.665 | L167: 1.044 | M167: 1.845 | N167: 4.881 | O167: 5.374 | P167: 1.028 | Q167: 1.444 | R167: 1.589 | S167: 1.916 | T167: 1.152 | U167: 1.028 | V167: 1.635 | W167: 1.975 | X167: 1.338 | Y167: 0.692 | Z167: 41.447 | AA167: 0.681 | AB167: 5.374 | AC167: 1.726958333
A168: 2021-06-14 | B168: 0.652 | C168: 0.641 | D168: 0.572 | E168: 0.602 | F168: 0.536 | G168: 0.613 | H168: 1.331 | I168: 1.939 | J168: 1.38 | K168: 0.66 | L168: 0.549 | M168: 1.535 | N168: 0.995 | O168: 0.699 | P168: 2.154 | Q168: 1.198 | R168: 2.497 | S168: 2.128 | T168: 1.314 | U168: 2.633 | V168: 1.801 | W168: 2.233 | X168: 1.942 | Y168: 0.826 | Z168: 31.43 | AA168: 0.536 | AB168: 2.633 | AC168: 1.309583333
A169: 2021-06-15 | B169: 0.576 | C169: 0.574 | D169: 1.498 | E169: 1.833 | F169: 1.403 | G169: 0.711 | H169: 0.651 | I169: 1.795 | J169: 2.495 | K169: 2.502 | L169: 1.022 | M169: 1.216 | N169: 1.713 | O169: 1.844 | P169: 0.637 | Q169: 1.012 | R169: 0.688 | S169: 1.806 | T169: 1.93 | U169: 0.751 | V169: 0.884 | W169: 1.143 | X169: 1.688 | Y169: 1.875 | Z169: 32.247 | AA169: 0.574 | AB169: 2.502 | AC169: 1.343625
A170: 2021-06-16 | B170: 1.959 | C170: 2.382 | D170: 0.949 | E170: 0.659 | F170: 0.629 | G170: 0.94 | H170: 1.978 | I170: 2.24 | J170: 1.476 | K170: 0.621 | L170: 0.461 | M170: 0.763 | N170: 1.759 | O170: 2.026 | P170: 1.149 | Q170: 1.393 | R170: 0.486 | S170: 2.3 | T170: 2.638 | U170: 1.042 | V170: 0.899 | W170: 1.653 | X170: 1.778 | Y170: 1.741 | Z170: 33.921 | AA170: 0.461 | AB170: 2.638 | AC170: 1.413375
A171: 2021-06-17 | B171: 0.626 | C171: 0.581 | D171: 0.462 | E171: 0.442 | F171: 0.446 | G171: 1.123 | H171: 1.645 | I171: 2.125 | J171: 0.863 | K171: 0.604 | L171: 0.594 | M171: 0.553 | N171: 0.594 | O171: 0.579 | P171: 1.092 | Q171: 2.66 | R171: 2.076 | S171: 0.748 | T171: 0.764 | U171: 0.728 | V171: 1.543 | W171: 1.761 | X171: 1.421 | Y171: 0.577 | Z171: 24.607 | AA171: 0.442 | AB171: 2.66 | AC171: 1.025291667
A172: 2021-06-18 | B172: 0.495 | C172: 0.485 | D172: 0.498 | E172: 0.502 | F172: 1.518 | G172: 1.708 | H172: 1.72 | I172: 1.128 | J172: 0.48 | K172: 0.458 | L172: 0.547 | M172: 1.583 | N172: 1.673 | O172: 1.152 | P172: 0.517 | Q172: 0.551 | R172: 0.861 | S172: 0.948 | T172: 0.776 | U172: 0.825 | V172: 0.537 | W172: 0.525 | X172: 0.459 | Y172: 0.468 | Z172: 20.414 | AA172: 0.458 | AB172: 1.72 | AC172: 0.8505833333
A173: 2021-06-19 | B173: 0.595 | C173: 1.726 | D173: 1.771 | E173: 0.925 | F173: 0.488 | G173: 1.087 | H173: 1.839 | I173: 1.737 | J173: 0.629 | K173: 0.774 | L173: 0.594 | M173: 0.722 | N173: 1.18 | O173: 1.967 | P173: 2.025 | Q173: 1.187 | R173: 0.52 | S173: 0.584 | T173: 0.542 | U173: 1.774 | V173: 0.819 | W173: 0.774 | X173: 0.425 | Y173: 0.437 | Z173: 25.121 | AA173: 0.425 | AB173: 2.025 | AC173: 1.046708333
A174: 2021-06-20 | B174: 0.436 | C174: 0.415 | D174: 0.656 | E174: 1.792 | F174: 1.835 | G174: 0.689 | H174: 0.513 | I174: 0.466 | J174: 0.693 | K174: 2.258 | L174: 1.515 | M174: 0.896 | N174: 0.701 | O174: 0.796 | P174: 0.864 | Q174: 1.171 | R174: 1.599 | S174: 0.93 | T174: 0.646 | U174: 1.462 | V174: 1.904 | W174: 1.772 | X174: 1.755 | Y174: 0.783 | Z174: 26.547 | AA174: 0.415 | AB174: 2.258 | AC174: 1.106125
A175: 2021-06-21 | B175: 0.505 | C175: 0.466 | D175: 0.727 | E175: 1.713 | F175: 1.57 | G175: 0.513 | H175: 0.575 | I175: 0.726 | J175: 0.952 | K175: 2.185 | L175: 2.241 | M175: 0.826 | N175: 0.466 | O175: 0.468 | P175: 0.496 | Q175: 0.532 | R175: 1.841 | S175: 1.776 | T175: 0.693 | U175: 0.822 | V175: 2.802 | W175: 0.582 | X175: 0.484 | Y175: 0.437 | Z175: 24.398 | AA175: 0.437 | AB175: 2.802 | AC175: 1.016583333
A176: 2021-06-22 | B176: 1.439 | C176: 1.659 | D176: 1.495 | E176: 0.584 | F176: 0.541 | G176: 0.665 | H176: 0.857 | I176: 2.112 | J176: 2.051 | K176: 1.01 | L176: 0.531 | M176: 0.491 | N176: 0.416 | O176: 0.469 | P176: 0.416 | Q176: 1.446 | R176: 1.329 | S176: 1.598 | T176: 1.557 | U176: 2.162 | V176: 0.895 | W176: 0.639 | X176: 0.532 | Y176: 0.449 | Z176: 25.343 | AA176: 0.416 | AB176: 2.162 | AC176: 1.055958333
A177: 2021-06-23 | B177: 0.512 | C177: 4.342 | D177: 1.219 | E177: 0.611 | F177: 0.607 | G177: 1.01 | H177: 1.85 | I177: 2.063 | J177: 1.394 | K177: 1.517 | L177: 1.144 | M177: 0.445 | N177: 0.426 | O177: 0.872 | P177: 0.659 | Q177: 2 | R177: 2.235 | S177: 1.208 | T177: 0.53 | U177: 0.707 | V177: 1.378 | W177: 1.29 | X177: 0.91 | Y177: 0.4 | Z177: 29.329 | AA177: 0.4 | AB177: 4.342 | AC177: 1.222041667
A178: 2021-06-24 | B178: 0.416 | C178: 0.408 | D178: 0.42 | E178: 0.478 | F178: 0.572 | G178: 0.975 | H178: 1.827 | I178: 1.588 | J178: 0.448 | K178: 0.395 | L178: 0.409 | M178: 0.411 | N178: 0.401 | O178: 0.394 | P178: 0.702 | Q178: 0.491 | R178: 0.447 | S178: 0.399 | T178: 0.412 | U178: 0.662 | V178: 1.703 | W178: 1.701 | X178: 1.494 | Y178: 0.646 | Z178: 17.799 | AA178: 0.394 | AB178: 1.827 | AC178: 0.741625
A179: 2021-06-25 | B179: 0.461 | C179: 0.442 | D179: 0.45 | E179: 0.438 | F179: 0.432 | G179: 0.837 | H179: 1.81 | I179: 1.62 | J179: 0.616 | K179: 0.927 | L179: 0.732 | M179: 0.589 | N179: 0.687 | O179: 0.447 | P179: 1.125 | Q179: 1.964 | R179: 1.423 | S179: 0.714 | T179: 2.142 | U179: 0.619 | V179: 0.444 | W179: 0.501 | X179: 0.527 | Y179: 0.471 | Z179: 20.418 | AA179: 0.432 | AB179: 2.142 | AC179: 0.85075
A180: 2021-06-26 | B180: 0.481 | C180: 0.458 | D180: 0.928 | E180: 0.691 | F180: 0.527 | G180: 0.727 | H180: 0.972 | I180: 0.962 | J180: 0.592 | K180: 0.888 | L180: 0.705 | M180: 0.633 | N180: 0.59 | O180: 1.481 | P180: 1.507 | Q180: 0.428 | R180: 0.757 | S180: 0.489 | T180: 0.794 | U180: 1.151 | V180: 0.606 | W180: 0.492 | X180: 0.466 | Y180: 0.475 | Z180: 17.8 | AA180: 0.428 | AB180: 1.507 | AC180: 0.7416666667
A181: 2021-06-27 | B181: 1.663 | C181: 1.729 | D181: 0.745 | E181: 0.515 | F181: 0.601 | G181: 1.096 | H181: 1.798 | I181: 1.771 | J181: 1.015 | K181: 0.792 | L181: 0.727 | M181: 0.874 | N181: 0.65 | O181: 2.693 | P181: 0.967 | Q181: 2.282 | R181: 2.134 | S181: 0.789 | T181: 1.045 | U181: 0.605 | V181: 0.514 | W181: 0.508 | X181: 0.48 | Y181: 0.476 | Z181: 26.469 | AA181: 0.476 | AB181: 2.693 | AC181: 1.102875
A182: 2021-06-28 | B182: 0.454 | C182: 0.442 | D182: 0.455 | E182: 0.469 | F182: 1.68 | G182: 1.698 | H182: 0.416 | I182: 0.475 | J182: 0.587 | K182: 0.625 | L182: 0.519 | M182: 0.435 | N182: 1.07 | O182: 1.786 | P182: 1.904 | Q182: 1.241 | R182: 1.632 | S182: 0.66 | T182: 0.445 | U182: 0.8 | V182: 0.748 | W182: 1.446 | X182: 2.06 | Y182: 0.938 | Z182: 22.985 | AA182: 0.416 | AB182: 2.06 | AC182: 0.9577083333
A183: 2021-06-29 | B183: 0.498 | C183: 0.465 | D183: 0.449 | E183: 0.451 | F183: 0.526 | G183: 0.514 | H183: 0.517 | I183: 1.437 | J183: 1.789 | K183: 1.902 | L183: 1.7 | M183: 2.037 | N183: 1.054 | O183: 0.426 | P183: 0.491 | Q183: 1.473 | R183: 0.783 | S183: 0.469 | T183: 0.498 | U183: 0.659 | V183: 1.882 | W183: 1.863 | X183: 0.736 | Y183: 0.436 | Z183: 23.055 | AA183: 0.426 | AB183: 2.037 | AC183: 0.960625
A184: 2021-06-30 | B184: 0.46 | C184: 2.841 | D184: 0.447 | E184: 0.459 | F184: 0.436 | G184: 0.422 | H184: 0.44 | I184: 0.489 | J184: 0.476 | K184: 0.635 | L184: 0.481 | M184: 1.042 | N184: 0.483 | O184: 0.447 | P184: 0.439 | Q184: 0.403 | R184: 0.421 | S184: 1.266 | T184: 1.326 | U184: 1.798 | V184: 1.406 | W184: 1.516 | X184: 1.061 | Y184: 0.44 | Z184: 19.634 | AA184: 0.403 | AB184: 2.841 | AC184: 0.8180833333
A185: 2021-07-01 | B185: 0.452 | C185: 0.459 | D185: 0.439 | E185: 0.447 | F185: 0.483 | G185: 0.437 | H185: 0.452 | I185: 0.466 | J185: 0.631 | K185: 0.803 | L185: 0.68 | M185: 1.336 | N185: 0.899 | O185: 0.577 | P185: 0.923 | Q185: 1.544 | R185: 1.8 | S185: 1.348 | T185: 0.859 | U185: 0.89 | V185: 1.043 | W185: 0.802 | X185: 0.551 | Y185: 1.036 | Z185: 19.357 | AA185: 0.437 | AB185: 1.8 | AC185: 0.8065416667
A186: 2021-07-02 | B186: 0.737 | C186: 0.466 | D186: 0.434 | E186: 0.431 | F186: 0.439 | G186: 0.415 | H186: 0.422 | I186: 0.521 | J186: 0.462 | K186: 0.653 | L186: 0.623 | M186: 0.428 | N186: 0.705 | O186: 1.197 | P186: 1.284 | Q186: 0.524 | R186: 0.417 | S186: 0.445 | T186: 0.408 | U186: 0.667 | V186: 0.568 | W186: 0.447 | X186: 0.424 | Y186: 0.427 | Z186: 13.544 | AA186: 0.408 | AB186: 1.284 | AC186: 0.5643333333
A187: 2021-07-03 | B187: 0.454 | C187: 0.415 | D187: 0.462 | E187: 0.446 | F187: 0.437 | G187: 0.425 | H187: 0.429 | I187: 0.419 | J187: 1.398 | K187: 1.763 | L187: 1.436 | M187: 0.513 | N187: 0.448 | O187: 0.46 | P187: 0.805 | Q187: 0.472 | R187: 0.502 | S187: 0.805 | T187: 0.709 | U187: 2.053 | V187: 0.6 | W187: 0.561 | X187: 0.752 | Y187: 0.487 | Z187: 17.251 | AA187: 0.415 | AB187: 2.053 | AC187: 0.7187916667
A188: 2021-07-04 | B188: 0.503 | C188: 0.505 | D188: 0.499 | E188: 0.947 | F188: 1.655 | G188: 0.989 | H188: 0.454 | I188: 0.467 | J188: 0.861 | K188: 1.032 | L188: 0.874 | M188: 0.515 | N188: 0.453 | O188: 0.603 | P188: 1.069 | Q188: 0.8 | R188: 0.593 | S188: 0.485 | T188: 0.448 | U188: 0.46 | V188: 0.493 | W188: 0.463 | X188: 0.434 | Y188: 0.448 | Z188: 16.05 | AA188: 0.434 | AB188: 1.655 | AC188: 0.66875
A189: 2021-07-05 | B189: 0.498 | C189: 1.616 | D189: 1.315 | E189: 0.46 | F189: 0.427 | G189: 0.424 | H189: 0.426 | I189: 0.426 | J189: 0.427 | K189: 0.617 | L189: 0.711 | M189: 0.526 | N189: 0.513 | O189: 0.935 | P189: 0.636 | Q189: 1.211 | R189: 1.077 | S189: 1.145 | T189: 0.836 | U189: 1.905 | V189: 2.126 | W189: 1.574 | X189: 0.892 | Y189: 0.482 | Z189: 21.205 | AA189: 0.424 | AB189: 2.126 | AC189: 0.8835416667
A190: 2021-07-06 | B190: 0.458 | C190: 0.461 | D190: 0.471 | E190: 0.444 | F190: 0.447 | G190: 0.449 | H190: 0.443 | I190: 0.444 | J190: 0.451 | K190: 0.51 | L190: 0.657 | M190: 0.592 | N190: 1.217 | O190: 1.968 | P190: 0.64 | Q190: 0.515 | R190: 1.114 | S190: 1.374 | T190: 1.892 | U190: 1.979 | V190: 0.843 | W190: 0.608 | X190: 1.6 | Y190: 1.036 | Z190: 20.613 | AA190: 0.443 | AB190: 1.979 | AC190: 0.858875
A191: 2021-07-07 | B191: 0.531 | C191: 2.825 | D191: 0.534 | E191: 1.477 | F191: 0.674 | G191: 0.711 | H191: 0.464 | I191: 0.455 | J191: 0.645 | K191: 1.026 | L191: 0.719 | M191: 0.654 | N191: 0.938 | O191: 0.699 | P191: 0.749 | Q191: 0.585 | R191: 1.346 | S191: 0.772 | T191: 1.767 | U191: 2.753 | V191: 0.548 | W191: 0.561 | X191: 0.638 | Y191: 0.712 | Z191: 22.783 | AA191: 0.455 | AB191: 2.825 | AC191: 0.9492916667
A192: 2021-07-08 | B192: 0.582 | C192: 0.584 | D192: 0.567 | E192: 0.567 | F192: 0.558 | G192: 0.513 | H192: 0.484 | I192: 0.498 | J192: 0.542 | K192: 0.68 | L192: 0.972 | M192: 2.557 | N192: 2.107 | O192: 1.245 | P192: 0.567 | Q192: 2.636 | R192: 0.932 | S192: 0.775 | T192: 0.821 | U192: 0.761 | V192: 0.466 | W192: 0.589 | X192: 1.63 | Y192: 1.651 | Z192: 23.284 | AA192: 0.466 | AB192: 2.636 | AC192: 0.9701666667
A193: 2021-07-09 | B193: 1.503 | C193: 0.495 | D193: 0.468 | E193: 0.482 | F193: 1.319 | G193: 1.357 | H193: 0.517 | I193: 0.507 | J193: 0.604 | K193: 0.511 | L193: 0.86 | M193: 2.047 | N193: 2.027 | O193: 1.631 | P193: 0.406 | Q193: 0.404 | R193: 0.402 | S193: 0.404 | T193: 0.415 | U193: 0.391 | V193: 0.404 | W193: 0.41 | X193: 0.4 | Y193: 0.471 | Z193: 18.435 | AA193: 0.391 | AB193: 2.047 | AC193: 0.768125
A194: 2021-07-10 | B194: 0.466 | C194: 0.46 | D194: 1.341 | E194: 1.725 | F194: 0.623 | G194: 0.417 | H194: 0.393 | I194: 0.399 | J194: 0.416 | K194: 0.489 | L194: 0.448 | M194: 0.414 | N194: 0.397 | O194: 0.392 | P194: 0.405 | Q194: 0.398 | R194: 0.822 | S194: 1.571 | T194: 1.036 | U194: 0.4 | V194: 0.421 | W194: 0.44 | X194: 0.418 | Y194: 0.477 | Z194: 14.768 | AA194: 0.392 | AB194: 1.725 | AC194: 0.6153333333
A195: 2021-07-11 | B195: 0.465 | C195: 0.451 | D195: 0.315 | E195: 0.539 | F195: 0.678 | G195: 0.459 | H195: 0.458 | I195: 0.448 | J195: 0.425 | K195: 1.567 | L195: 1.489 | M195: 0.398 | N195: 0.406 | O195: 0.393 | P195: 0.488 | Q195: 1.488 | R195: 0.64 | S195: 0.652 | T195: 0.755 | U195: 0.477 | V195: 0.519 | W195: 0.842 | X195: 1.664 | Y195: 1.598 | Z195: 17.614 | AA195: 0.315 | AB195: 1.664 | AC195: 0.7339166667
A196: 2021-07-12 | B196: 0.564 | C196: 0.504 | D196: 0.521 | E196: 0.513 | F196: 0.503 | G196: 0.431 | H196: 0.479 | I196: 0.508 | J196: 0.507 | K196: 0.778 | L196: 0.644 | M196: 1.672 | N196: 1.496 | O196: 1.746 | P196: 1.355 | Q196: 2.379 | R196: 1.344 | S196: 1.098 | T196: 1.911 | U196: 0.992 | V196: 0.544 | W196: 0.516 | X196: 0.548 | Y196: 0.603 | Z196: =SUM(B196:Y196) -> 22.156 | AA196: =MIN(B196:Y196) -> 0.431 | AB196: =MAX(B196:Y196) -> 2.379 | AC196: =AVERAGE(B196:Y196) -> 0.9231666667
A197: 2021-07-13 | B197: 0.58 | C197: 0.626 | D197: 1.618 | E197: 1.507 | F197: 0.503 | G197: 0.453 | H197: 0.44 | I197: 0.532 | J197: 0.446 | K197: 0.673 | L197: 1.486 | M197: 0.735 | N197: 1.335 | O197: 0.782 | P197: 0.715 | Q197: 0.58 | R197: 1.133 | S197: 1.329 | T197: 1.528 | U197: 1.779 | V197: 1.654 | W197: 1.048 | X197: 0.536 | Y197: 0.472 | Z197: 22.49 | AA197: 0.44 | AB197: 1.779 | AC197: 0.9370833333
A198: 2021-07-14 | B198: 0.48 | C198: 4.144 | D198: 1.296 | E198: 0.479 | F198: 0.441 | G198: 0.403 | H198: 0.406 | I198: 0.543 | J198: 0.602 | K198: 0.547 | L198: 0.606 | M198: 0.674 | N198: 0.488 | O198: 0.431 | P198: 0.923 | Q198: 0.539 | R198: 1.2 | S198: 1.336 | T198: 1.443 | U198: 2.205 | V198: 0.601 | W198: 0.564 | X198: 1.292 | Y198: 0.695 | Z198: 22.338 | AA198: 0.403 | AB198: 4.144 | AC198: 0.93075
A199: 2021-07-15 | B199: 0.791 | C199: 0.48 | D199: 0.511 | E199: 1.58 | F199: 1.597 | G199: 0.467 | H199: 0.437 | I199: 0.774 | J199: 0.553 | K199: 0.46 | L199: 0.407 | M199: 0.618 | N199: 0.462 | O199: 0.431 | P199: 0.43 | Q199: 0.428 | R199: 0.536 | S199: 0.568 | T199: 0.446 | U199: 0.447 | V199: 0.463 | W199: 1.135 | X199: 1.717 | Y199: 0.852 | Z199: 16.59 | AA199: 0.407 | AB199: 1.717 | AC199: 0.69125
A200: 2021-07-16 | B200: 0.514 | C200: 0.487 | D200: 0.519 | E200: 0.509 | F200: 0.487 | G200: 0.418 | H200: 0.443 | I200: 0.422 | J200: 0.58 | K200: 0.523 | L200: 0.851 | M200: 0.86 | N200: 0.419 | O200: 0.399 | P200: 0.598 | Q200: 1.424 | R200: 1.519 | S200: 0.413 | T200: 0.421 | U200: 0.737 | V200: 0.411 | W200: 0.537 | X200: 0.468 | Y200: 0.493 | Z200: 14.452 | AA200: 0.399 | AB200: 1.519 | AC200: 0.6021666667
A201: 2021-07-17 | B201: 0.498 | C201: 0.468 | D201: 0.468 | E201: 0.454 | F201: 0.457 | G201: 0.386 | H201: 0.406 | I201: 0.377 | J201: 0.596 | K201: 1.256 | L201: 1.506 | M201: 2.035 | N201: 0.4 | O201: 0.409 | P201: 0.393 | Q201: 0.406 | R201: 0.408 | S201: 0.382 | T201: 0.434 | U201: 0.424 | V201: 0.394 | W201: 0.424 | X201: 0.42 | Y201: 0.484 | Z201: 13.885 | AA201: 0.377 | AB201: 2.035 | AC201: 0.5785416667
... 120 more rows
